Cogmind - Beta 13 X1 @@@ ROGUE MODE // 2023.08.29 @ 22:04:10 Player: leiavoia Result: Destroyed by S-43 Plague with Heavy Machine Gun Performance ------------- Evolutions (9) 4500 Regions Visited (43) 8600 Robots Destroyed (2131) 10655 Value Destroyed (104724) 104724 Prototype IDs (115) 2300 Alien Tech Used (2) 400 Bonus (116438) 116438 TOTAL SCORE: 247617 Bonus ------- Triggered High Security 6000 High Alert Combat Kills 94721 Follower Combat Kills 4377 Entered Garrisons 800 Network Hubs Disabled 200 Aligned with FarCom 300 Met Data Miner 300 Met Imprinter 300 Met Warlord at Base 500 MAIN.C Attacked Warlord 500 Warlord Defense Kills 1600 Built Enhanced Grunts 300 Met R17 at Cetus 500 Found Hidden Lab 3000 Used Core Reset Matrix 3000 Met Warlord at Research 2000 Pursued by Intercept 500 Friendly Fire -2460 Cogmind --------- Core Integrity 0/1600 Matter 85/300 Energy 99/100 System Corruption 31% Temperature Cool (0) Movement Core (50) Location -1/Command Parts ------- > --- POWER (3) -------- (None) > --- PROPULSION (6) --- (None) > --- UTILITY (13) ----- Graphene Brace > --- WEAPON (3) ------- (None) > --- INVENTORY (5) ---- Coolant Network Enhanced Nova Cannon Potential Cannon Peak State ------------ > --- POWER ------------ Quantum Reactor Vortex Chain Reactor > --- PROPULSION ------- Biometal Heavy Treads Advanced Heavy Siege Treads Advanced Heavy Siege Treads > --- UTILITY ---------- Experimental Heat Sink Coolant Network Coolant Network Cargo Storage Unit Launcher Loader Heavy Regenerative Plating Graphene Brace Advanced Force Field > --- WEAPON ----------- Enhanced Nova Cannon Heavy Linear Accelerator > --- INVENTORY -------- Quantum Reactor Quantum Reactor Advanced Heavy Siege Treads Huge Storage Unit Matter Compressor Improved Matter Compressor Long-range Terrain Scanner Precision Matter Filter Precision Matter Filter Medium Reflective Plating Advanced Force Field Antimissile System Improved Hacking Suite Advanced System Shield Long-range Tractor Beam Long-range Tractor Beam Transdimensional Reconstructor Enhanced Nova Cannon Potential Cannon Heavy Gauss Cannon Heavy Proton Missile Launcher Micro-nuke Launcher Neutron Missile Launcher Neutron Missile Launcher Neutron Missile Launcher Neutron Missile Launcher Chain Missile Launcher [Rating: 216] Favorites ----------- Power F-cell Engine Engine F-cell Engine Power Core Reinforced Fission Core Reactor Vortex Chain Reactor Propulsion Improved Heavy Treads Treads Improved Heavy Treads Leg Aluminum Leg Wheel Armored Huge Wheel Hover Unit Antigrav System Flight Unit Field Propulsion Drive Utility Cargo Storage Unit Device Advanced Cooling System Storage Cargo Storage Unit Processor Improved System Guard Hackware Hacking Suite Protection Heavy Reactive Plating Weapon Nova Cannon Energy Gun Spread Laser Energy Cannon Nova Cannon Ballistic Gun Improved Heavy Machine Gun Ballistic Cannon Tri-rail Accelerator Launcher Long-range Missile Launcher Special Weapon Remote Datajack Impact Weapon Power Maul Slashing Weapon Great Axe Piercing Weapon CR-A16's Behemoth Slayer Special Melee Weapon Improved Datajack Build | -11 -10 -10 -10 -9 -8 -8 -8 -8 -8 -7 -7 -7 -7 -7 -7 -6 -6 -6 -6 -6 -6 -6 -6 -6 -5 -5 -5 -5 -5 -5 -5 -5 -4 -4 -4 -4 -3 -3 -3 -3 -2 -1 -1 ------- Run | Jun Mat Min Exi Min Mat Gar Mat Gar Mat Fac Was Fac Low Low Zio Pro Fac Was Fac Gar Fac Low Low Dat Pro Fac Gar Fac Ext Cet Arc Hub Fac Upp Upp War Pro Res Arm Lab Res Acc Com Slots Evolved 18 | . . . . . 4 . . . . 2 . . . . . . 2 . . . . . . . . 2 . . . . . . 2 . . . . 2 . . 2 2 . Power 2 | . . . . . . . . . . . . . . . . . . . . . . . . . . 1 . . . . . . . . . . . . . . . 1 . Propulsion 4 | . . . . . 2 . . . . 1 . . . . . . . . . . . . . . . . . . . . . . 1 . . . . . . . . . . Utility 11 | . . . . . 2 . . . . 1 . . . . . . 1 . . . . . . . . 1 . . . . . . 1 . . . . 2 . . 2 1 . Weapon 1 | . . . . . . . . . . . . . . . . . 1 . . . . . . . . . . . . . . . . . . . . . . . . . . Parts Attached 1854 | . 10 6 3 2 10 29 6 31 7 32 . 186 10 4 18 28 1 10 169 35 78 5 11 . 18 180 47 65 63 73 13 13 226 18 7 19 19 143 37 16 53 138 15 Power 74 | . 1 2 . 1 . 1 1 1 . 4 . 5 1 . 1 3 . 1 7 1 4 . . . . 11 3 . . . 1 . 19 1 . . . 3 . . . 2 . Engine 40 | . 1 2 . 1 . 1 1 1 . 3 . 5 1 . 1 2 . . 2 . 1 . . . . 9 2 . . . . . 7 . . . . . . . . . . Core 15 | . . . . . . . . . . 1 . . . . . 1 . . 4 . . . . . . 2 1 . . . . . 6 . . . . . . . . . . Reactor 19 | . . . . . . . . . . . . . . . . . . 1 1 1 3 . . . . . . . . . 1 . 6 1 . . . 3 . . . 2 . Propulsion 219 | . 4 . 1 . 3 6 1 1 2 9 . 14 . 2 6 7 . . 25 4 9 . 2 . 2 23 4 5 6 2 2 2 53 3 . . 3 9 3 . 1 3 2 Treads 79 | . . . . . . 1 . . 1 . . 6 . . 3 1 . . 5 2 7 . 2 . 2 6 2 3 3 2 . 2 13 3 . . . 7 3 . 1 3 1 Leg . | . . . . . . . . . . . . . . . . . . . . . . . . . . . . . . . . . . . . . . . . . . . . Wheel 71 | . 4 . 1 . 3 5 1 1 1 2 . 4 . 2 3 4 . . 2 2 2 . . . . 8 2 2 3 . 2 . 13 . . . 2 2 . . . . . Hover 9 | . . . . . . . . . . . . . . . . . . . . . . . . . . . . . . . . . 9 . . . . . . . . . . Flight 60 | . . . . . . . . . . 7 . 4 . . . 2 . . 18 . . . . . . 9 . . . . . . 18 . . . 1 . . . . . 1 Utility 1032 | . 3 2 . 1 4 8 1 8 5 10 . 123 6 . 3 11 1 4 92 15 50 2 7 . 11 97 18 45 43 31 10 10 110 7 . 13 8 100 29 9 42 86 7 Device 774 | . 2 2 . . 2 2 1 5 1 1 . 101 3 . 1 9 1 3 68 12 36 2 6 . 6 75 12 41 38 23 4 8 73 5 . 9 6 86 17 6 28 76 3 Storage 47 | . 1 . . . . . . . . 1 . 2 . . 1 1 . . 6 . 2 . . . . 5 1 2 2 . . . 8 . . . . 5 7 . 1 2 . Processor 19 | . . . . . . . . . . . . 3 . . . . . . 3 . . . . . . 1 . . . . . . 3 . . 2 . . 1 . 6 . . Hackware 45 | . . . . . . . . . 2 6 . 2 . . . . . . 7 . 1 . . . 3 7 . . . . 4 . 7 . . . 2 2 . . . . 2 Protection 147 | . . . . 1 2 6 . 3 2 2 . 15 3 . 1 1 . 1 8 3 11 . 1 . 2 9 5 2 3 8 2 2 19 2 . 2 . 7 4 3 7 8 2 Artifact . | . . . . . . . . . . . . . . . . . . . . . . . . . . . . . . . . . . . . . . . . . . . . Weapon 529 | . 2 2 2 . 3 14 3 21 . 9 . 44 3 2 8 7 . 5 45 15 15 3 2 . 5 49 22 15 14 40 . 1 44 7 7 6 8 31 5 7 10 47 6 Energy Gun 16 | . 2 2 . . . 3 3 5 . . . . . . . . . . . . . . . . . . . . . . . . . . . 1 . . . . . . . Energy Cannon 169 | . . . . . 1 . . 5 . 2 . 11 . 1 . 1 . 1 18 9 5 . 1 . 2 27 10 1 5 16 . . 9 . 1 1 1 9 2 3 4 23 . Ballistic Gun 7 | . . . . . 1 2 . . . . . . . . 1 . . . . . 1 1 . . . . . . . . . . 1 . . . . . . . . . . Ballistic Cannon 93 | . . . . . . . . 1 . 3 . 12 2 . 5 2 . 2 8 1 2 1 . . 1 3 2 1 1 4 . 1 12 4 4 3 3 7 . 3 2 2 1 Launcher 200 | . . . . . . 4 . 10 . 3 . 18 1 1 1 3 . 2 6 5 7 1 . . 1 14 9 13 8 20 . . 14 3 1 1 4 15 3 1 4 22 5 Special Weapon 1 | . . . . . . . . . . . . . . . . . . . . . . . 1 . . . . . . . . . . . . . . . . . . . . Impact Weapon 16 | . . . 1 . . 3 . . . 1 . 3 . . . 1 . . 4 . . . . . . 1 . . . . . . 2 . . . . . . . . . . Slashing Weapon 6 | . . . 1 . 1 2 . . . . . . . . . . . . . . . . . . . 2 . . . . . . . . . . . . . . . . . Piercing Weapon 15 | . . . . . . . . . . . . . . . 1 . . . 5 . . . . . 1 1 1 . . . . . 5 . 1 . . . . . . . . Special Melee Weapon 6 | . . . . . . . . . . . . . . . . . . . 4 . . . . . . 1 . . . . . . 1 . . . . . . . . . . Unidentified Prototypes 54 | . . . . . . . 1 . . 4 . 1 . . 1 6 . . 4 1 3 . . . . 4 . . . 2 . . 6 . . 6 . 5 1 5 1 3 . Corrupted Parts 1 | . . . . . . . . . . . . . . . . 1 . . . . . . . . . . . . . . . . . . . . . . . . . . . System Corruption 10 | . . . . . . . . . . . . . . . . 10 . . . . . . . . . . . . . . . . . . . . . . . . . . . Parts Lost 112 | . . . . . . 2 . 1 1 7 . 11 4 . . . . . 13 . 8 . . . 1 9 1 1 4 3 . 1 19 1 . . . 2 2 . 1 . 20 Power 13 | . . . . . . . . . . 1 . 1 1 . . . . . . . . . . . . 2 . . . . . . 4 1 . . . 1 . . . . 2 Propulsion 33 | . . . . . . 1 . . . 3 . 2 2 . . . . . 8 . 2 . . . . 2 . . 1 . . . 7 . . . . . . . . . 5 Utility 51 | . . . . . . 1 . 1 1 2 . 6 1 . . . . . 4 . 4 . . . . 5 1 1 3 3 . 1 5 . . . . 1 2 . 1 . 8 Weapon 15 | . . . . . . . . . . 1 . 2 . . . . . . 1 . 2 . . . 1 . . . . . . . 3 . . . . . . . . . 5 Highest Loss Streak 20 | . . . . . . 2 . 1 1 2 . 8 4 . . . . . 5 . 3 . . . 1 4 1 1 2 1 . 1 5 1 . . . 1 1 . 1 . 20 To Critical Strikes 1 | . . . . . . . . . . . . . . . . . . . . . . . . . . . . . . . . . . . . . . . . . . . 1 Average Slot Usage (%) 74 | . 95 99 100 100 93 94 100 99 99 84 92 77 61 63 75 75 80 85 74 72 73 73 74 80 80 72 74 76 78 77 78 82 78 68 68 63 63 66 61 52 64 62 59 Engine 4 | . 13 13 14 14 9 9 9 9 9 7 7 7 6 7 7 6 6 4 3 4 1 . . . . 8 10 5 5 5 3 . 4 5 5 5 5 1 . . . . . Reactor 2 | . . . . . . . . . . . . . . . . . . 1 . 1 4 6 6 6 6 . . . . . 1 5 2 5 5 5 5 4 4 4 4 8 7 Treads 11 | . . . . . . 1 . . 7 1 . 13 . . . 7 6 6 12 18 7 20 21 26 26 9 16 8 13 14 13 11 2 14 15 15 14 11 13 14 13 12 11 Wheel 5 | . 23 28 28 28 31 34 36 36 28 10 . 2 15 17 29 22 20 20 2 1 8 . . . . 1 . 7 6 1 2 5 4 1 . . . 2 . . . . . Flight 3 | . . . . . . . . . . 13 30 10 . . . . . . 9 . . . . . . 7 . . . . . . 15 . . . . . . . . . . Device 13 | . 10 13 14 . 8 9 9 9 5 . . 6 6 7 7 6 20 19 13 13 21 13 13 13 8 12 14 23 19 15 15 9 12 10 10 9 10 19 20 14 21 21 18 Storage 5 | . 14 14 14 14 9 9 9 9 9 4 7 7 7 7 7 7 6 6 5 6 6 6 6 6 6 4 5 5 5 5 5 5 3 5 5 5 5 4 7 4 4 4 3 Hackware 3 | . . . . . . . . . 13 29 30 8 . . . . . . 4 . . . . . 4 9 . . . . 3 12 10 . . . . 1 . . . . 2 Protection 6 | . . . . 13 17 13 18 18 8 . . 4 6 7 6 7 6 6 4 12 3 6 5 6 6 4 9 4 7 8 5 5 3 10 10 10 9 5 3 5 11 9 7 Energy Cannon 4 | . . . . . 6 . . 7 9 6 . 6 . 3 1 1 6 2 2 3 9 7 6 6 5 2 4 3 3 14 11 7 3 . 1 3 . 3 3 6 3 2 3 Ballistic Cannon 4 | . . . . . . . . 3 9 3 7 1 7 . 6 6 6 3 5 7 2 6 . . 4 3 7 5 5 1 5 8 3 14 13 5 9 5 4 . 3 4 3 Launcher 1 | . . . . . . . . 2 . . . 3 6 10 . 4 . 12 2 1 5 . 6 6 3 . . 1 1 . . . . . . . . 1 . . 1 1 1 Naked Turns 13 | . . . . . . . . . . . . . . . . . . . . . . . . . . . . . . . . . 13 . . . . . . . . . . Heaviest Build 332 | 12 92 92 92 93 100 112 103 115 115 109 26 192 191 191 192 197 175 193 222 234 239 216 209 209 217 315 247 241 233 245 232 229 332 261 244 263 269 279 264 269 287 308 311 Greatest Support 240 | 20 24 24 24 24 48 48 48 48 48 48 31 170 38 58 58 50 50 50 180 180 180 180 158 158 165 165 167 167 152 187 187 160 240 230 230 230 230 230 225 225 230 235 235 Greatest Overweight (x) 9 | . 7 3 3 3 4 5 2 2 3 4 . 9 5 5 3 4 3 3 3 3 7 1 1 1 1 8 4 4 3 4 4 3 7 2 1 1 5 8 1 1 1 1 1 Average Overweight (x) 1 | . 2 3 3 3 2 2 1 2 2 . . . 4 3 2 3 3 3 . 1 2 1 1 1 1 . 1 3 2 2 2 2 . 1 1 . 1 3 1 . 1 1 . Largest Inventory Capacity 30 | 8 25 25 25 25 25 25 25 25 25 25 10 30 30 30 30 30 30 30 30 30 30 30 30 30 30 30 30 30 30 30 30 30 30 30 30 30 30 30 30 30 30 30 30 Average Capacity 25 | 8 22 25 25 25 25 25 25 25 25 15 10 23 30 30 30 30 30 30 21 30 27 30 30 30 30 19 30 28 27 30 30 30 14 30 30 30 30 30 30 30 30 30 29 Most Carried 30 | 6 25 25 25 25 25 25 25 25 25 25 10 30 30 30 30 30 30 30 30 30 30 30 30 30 30 30 30 30 30 30 30 30 30 30 30 30 30 30 30 30 30 30 30 Average Carried 25 | 6 17 24 24 24 24 24 24 24 24 15 9 22 29 29 29 29 29 29 21 29 26 29 29 30 29 18 29 28 26 29 29 28 12 29 29 29 29 29 29 29 29 28 29 Final Capacity 30 | 8 25 25 25 25 25 25 25 25 25 10 10 30 30 30 30 30 30 30 30 30 30 30 30 30 30 30 30 30 30 30 30 30 30 30 30 30 30 30 30 30 30 30 30 Final Carried 30 | 6 25 25 25 25 25 25 25 25 25 10 10 30 30 30 30 30 30 30 30 30 30 30 30 30 30 30 30 30 30 30 30 27 30 30 30 30 30 30 30 30 30 30 30 Class Distribution -------------------- 49% | Hauler-Mutant 9% | Hauler-Tank 9% | Hacker-Sprinter 9% | Machinist-Mutant 6% | Mutant 4% | Hacker-Mutant 3% | Scavenger-Mutant Dominant Class ---------------- Mutant | -10/Materials Mutant | -10/Mines Mutant | -10/Exiles Mutant | -9/Mines Mutant | -8/Materials Scavenger-Mutant | -8/Garrison Scavenger-Mutant | -8/Materials Scavenger-Mutant | -8/Garrison Hacker-Mutant | -8/Materials Hacker-Mutant | -7/Factory Hacker-Sprinter | -7/Waste Hauler-Mutant | -7/Factory Hauler-Mutant | -7/Lower Caves Hauler-Mutant | -7/Lower Caves Hauler-Mutant | -7/Zion Hauler-Mutant | -6/Proximity Caves Hauler-Mutant | -6/Factory Hauler-Tank | -6/Waste Machinist-Mutant | -6/Factory Hauler-Mutant | -6/Garrison Hauler-Mutant | -6/Factory Hauler-Bomber | -6/Lower Caves Hauler-Mutant | -6/Lower Caves Hauler-Mutant | -6/Data Miner Hauler-Mutant | -5/Proximity Caves Machinist-Mutant | -5/Factory Hauler-Mutant | -5/Garrison Hauler-Mutant | -5/Factory Mutant | -5/Extension Hauler-Mutant | -5/Cetus Hauler-Mutant | -5/Archives Hacker-Mutant | -5/Hub_04(d) Hacker-Sprinter | -4/Factory Hauler-Tank | -4/Upper Caves Hauler-Tank | -4/Upper Caves Hauler-Mutant | -4/Warlord Hauler-Tank | -3/Proximity Caves Hauler-Mutant | -3/Research Hauler-Mutant | -3/Armory Hauler-Mutant | -3/Lab Hauler-Mutant | -2/Research Hauler-Mutant | -1/Access Hauler-Tank | -1/Command Resources | -11 -10 -10 -10 -9 -8 -8 -8 -8 -8 -7 -7 -7 -7 -7 -7 -6 -6 -6 -6 -6 -6 -6 -6 -6 -5 -5 -5 -5 -5 -5 -5 -5 -4 -4 -4 -4 -3 -3 -3 -3 -2 -1 -1 ----------- Run | Jun Mat Min Exi Min Mat Gar Mat Gar Mat Fac Was Fac Low Low Zio Pro Fac Was Fac Gar Fac Low Low Dat Pro Fac Gar Fac Ext Cet Arc Hub Fac Upp Upp War Pro Res Arm Lab Res Acc Com Matter Collected 64115 | 204 257 106 . 65 109 464 74 1079 191 274 . 5431 395 385 227 1098 22 336 5747 1209 2904 494 363 . 850 4806 1879 3122 4507 3028 327 307 6494 700 364 362 807 6927 2364 1 1317 3991 528 Remotely 32384 | . . . . . . . . . . . . 3608 75 . . 155 . . 3138 312 1958 . 297 . 190 2741 246 2010 3040 1590 . 242 2505 188 . 61 641 4655 1400 . 580 2752 . Salvage Created 87508 | 78 450 394 . 27 193 1193 279 1035 311 522 . 5723 270 91 . 1113 15 785 5628 617 3332 344 77 . 790 8230 1726 4314 10997 3483 569 324 7888 358 327 282 812 6170 6015 58 537 7617 4534 Parts 3159 | 2 21 27 . . 11 40 24 45 11 19 . 283 5 5 . 26 2 2 252 24 111 6 12 . 50 363 52 174 340 130 19 12 257 20 10 10 24 196 205 . 9 224 136 Haulers Intercepted 34 | . 1 . . . 2 . 1 . . 2 . 3 . . . . . . 4 . . . . . . 7 . . 4 . . . 5 . . . . 3 . . 1 1 . Recyclers Shooed 27 | . . . . . . . . . 1 . . 1 . . . . . . 8 . 3 . . . . 6 . . . . . . 1 . . . . 4 . . . 3 . Parts Field Recycled 22 | . . . . . . . . . . . . . . . . . . . . . . . . . . . . . . . . . . . . . . 22 . . . . . Retrieved Matter 448 | . . . . . . . . . . . . . . . . . . . . . . . . . . . . . . . . . . . . . . 448 . . . . . Parts Self-Destructed 114 | . . . . . . . . . . . . . 3 1 1 15 . . . . . 10 8 . 35 . . . . . . . . 20 4 . 17 . . . . . . Prevented 12 | . . . . . . . . . . . . . . . . 6 . . . . . . . . 3 . . . . . . . . . 3 . . . . . . . . Kills | -11 -10 -10 -10 -9 -8 -8 -8 -8 -8 -7 -7 -7 -7 -7 -7 -6 -6 -6 -6 -6 -6 -6 -6 -6 -5 -5 -5 -5 -5 -5 -5 -5 -4 -4 -4 -4 -3 -3 -3 -3 -2 -1 -1 ------- Run | Jun Mat Min Exi Min Mat Gar Mat Gar Mat Fac Was Fac Low Low Zio Pro Fac Was Fac Gar Fac Low Low Dat Pro Fac Gar Fac Ext Cet Arc Hub Fac Upp Upp War Pro Res Arm Lab Res Acc Com Combat Hostiles Destroyed 1948 | . 11 14 . . 2 23 7 27 6 4 . 145 11 2 . 22 . 1 147 21 122 4 8 . 40 143 46 118 152 114 4 7 137 15 6 12 22 150 145 4 13 138 105 Melee 12 | . . . . . . 7 . . . . . 1 . . . . . . 1 . . . . . . . . . . . . . 3 . . . . . . . . . . Guns 43 | . 11 14 . . . 3 7 2 . . . . . . . . . . . . . . 1 . 3 . . . . . . . 2 . . . . . . . . . . Cannons 318 | . . . . . 2 . . 8 6 1 . 33 3 . . 2 . . 39 13 26 2 . . 5 25 26 17 10 9 4 6 18 7 3 . 7 25 7 1 3 10 . AOE 1535 | . . . . . . 10 . 17 . 3 . 110 8 2 . 20 . 1 105 8 96 . 7 . 30 112 19 89 142 104 . . 109 8 3 12 15 121 138 3 10 128 105 Classes Destroyed 30 | 1 4 1 . 1 . 6 1 1 . . . 3 1 1 . . . 1 1 . 2 . . . 2 . . . . . . 1 . . . 2 . 1 . . . . . Worker 97 | . . . . . . . 3 . . . . 22 . . . . 1 . 11 . . . . . . 11 . . 24 . . . 5 . . . . 8 . . . 10 2 Builder 132 | . . . . 1 . . 1 . . . . 38 . . . . . . 30 . 6 . . . . 24 . . 11 . . . 3 . . . . 5 . . . 13 . Tunneler 14 | . . . . . . . . . . . . 1 . . . . . . 1 . . . . . . . . . 10 . . . 1 . . . . 1 . . . . . Hauler 34 | . 1 . . . 2 . 1 . . 2 . 3 . . . . . . 4 . . . . . . 7 . . 4 . . . 5 . . . . 3 . . 1 1 . Recycler 124 | 1 1 . . . . . . . 1 3 . 11 . . . . . . 11 . 3 . . . . 14 . . 56 . . . 8 . . . . 4 . . . 10 1 Carrier 23 | . . . . . . . . . . . . . . . . . . . . . 1 . . . . 2 . 2 2 3 . . 2 . . . . 2 6 . 1 2 . Minesweeper 1 | . . . . . . . . . . . . . . . . . . . . . . . . . 1 . . . . . . . . . . . . . . . . . . Mechanic 91 | . . . . . . . . . . . . 11 . . . 1 . . 9 . 8 . . . . 5 . 12 11 2 . . 7 . . . 1 4 10 . . 9 1 Operator 19 | . 1 . . . . . . . . 2 . 2 . . . . . . . . . . . . . 1 . . . . 9 . . . . . . 2 1 . 1 . . Drone 3 | . . . . . . . . . . . . . . . . . . . . . . . . . 2 . . . . . . . . . . . 1 . . . . . . Watcher 50 | . 3 . . . . . . . . 3 . 5 . . . . . . 5 . 3 . . . . 9 2 . 2 . . 2 10 . . . . . 2 . 1 1 2 Swarmer 160 | . . 4 . . . 6 5 2 1 . . 4 4 . . 2 . . 7 2 . . 8 . 19 14 4 . 5 26 . . 5 7 5 . 7 3 . . . . 20 Cutter 8 | . . . . . . . . 3 . . . . . . . . . . . . . . . . . . . . . . . . . . . . . . . . . . 5 Saboteur 74 | . . . . . . . . . . . . . . . . . . . 8 . 11 . . . . 6 . 4 9 5 . . 7 . . 3 . 10 7 . . 4 . Grunt 787 | . 11 10 . . 2 3 2 19 1 3 . 70 3 . . 4 . . 74 11 57 3 . . 11 48 23 27 43 41 . 2 70 5 . 2 6 60 55 3 2 76 40 Brawler 114 | . . . . . . 2 . . . . . 10 1 . . 3 . . 10 1 10 1 . . . 10 2 7 11 6 . . 8 . . . 2 11 8 . . 4 7 Duelist 120 | . . . . . . 1 . . . . . 14 2 . . 2 . . 8 . 14 . . . . 12 1 5 9 4 . . 6 1 . . 3 10 13 . . 8 7 Protector 103 | . . . . . . . . . . . . 12 . . . 2 . . 7 . 7 . . . . 12 . 12 12 5 . . 4 . . . . 8 15 . . 6 1 Sentry 47 | . . . . . . 5 . . 3 . . 4 1 . . 2 . . 1 4 1 . . . 1 . 10 . . 4 4 1 . 1 1 . 1 1 1 . . 1 . Demolisher 6 | . . . . . . . . . . . . . . . . . . . . . 1 . . . . . . 2 . 2 . . . . . . . . . . 1 . . Specialist 12 | . . . . . . 1 . 1 . . . . . . . 1 . . . . . . . . 3 . 2 2 . . . 2 . . . . . . . . . . . Hunter 221 | . . . . . . 1 . . 1 . . 15 . 1 . 1 . . 18 1 15 . . . 1 20 2 40 31 8 . 1 12 . . 2 2 10 10 . 2 9 18 Programmer 248 | . . . . . . 4 . 3 . 1 . 16 . . . 3 . . 13 1 6 . . . 2 20 . 20 32 10 . . 24 1 . 3 . 31 28 . 2 22 6 Heavy 1 | . . . . . . . . . . . . . . . . . . . . . . . . . . . . . . . . 1 . . . . . . . . . . . Behemoth 10 | . . . . . . . . . . . . . . 1 . . . . 1 1 1 . . . 1 1 2 . . . . . 1 . . . . . . . . . 1 Compactor 1 | . . . . . . . . . . . . . . . . . . 1 . . . . . . . . . . . . . . . . . . . . . . . . . Cetus Guard 3 | . . . . . . . . . . . . . . . . . . . . . . . . . . . . . . 3 . . . . . . . . . . . . . Enhanced Grunt 2 | . . . . . . . . . . . . . . . . . . . . . . . . . . . . . . 2 . . . . . . . . . . . . . Tracker 2 | . . . . . . . . . . . . . . . . . . . . . . . . . . . . . . . . . . . . . . . . . . 2 . Combat Programmer 2 | . . . . . . . . . . . . . . . . . . . . . . . . . . . . . . . . . . . . . . . . . . 2 . Investigator 6 | . . . . . . . . . . . . . . . . . . . . . . . . . . . . . . . . . . . . . . 2 3 . . 1 . Striker 15 | . . . . . . . . . . . . . . . . . . . . . . . . . . . . . . . . . . . . 1 . 5 4 . 4 1 . Executioner 11 | . . . . . . . . . . . . . . . . . . . . . . . . . . . . . . . . . . . . 1 . 1 4 . 2 3 . Decomposer 1 | . . . . . . . . . . . . . 1 . . . . . . . . . . . . . . . . . . . . . . . . . . . . . . Packrat 2 | . . . . . . . . . . . . . . . . . . . . . . . . . . . . . . . . . . . 2 . . . . . . . . Samaritan 5 | . . . . . . . . . . . . . 1 2 . . . . . . . 2 . . . . . . . . . . . . . . . . . . . . . Thug 2 | . . 1 . . . . . . . . . . . . . 1 . . . . . . . . . . . . . . . . . . . . . . . . . . . Savage 1 | . . . . . . . . . . . . . . . . 1 . . . . . . . . . . . . . . . . . . . . . . . . . . . Best Kill Streak 90 | 1 3 2 . 1 2 8 6 9 3 5 . 23 8 1 . 13 1 1 22 6 37 4 4 . 6 36 8 17 55 48 5 3 24 5 5 12 10 26 34 4 6 25 90 Combat Bots Only 90 | . 2 2 . . 2 8 5 9 3 3 . 22 8 1 . 13 . 1 20 6 34 4 4 . 6 33 8 16 39 45 1 3 23 5 5 12 10 25 29 4 6 19 90 Max Kills in Single Turn 26 | 1 1 2 . 1 1 5 2 2 1 3 . 5 3 1 . 5 1 1 5 2 4 1 3 . 3 9 4 9 9 6 1 1 12 4 2 6 7 5 10 1 2 6 26 Gunslinging 1 | . . 1 . . . . . . . . . . . . . . . . . . . . . . . . . . . . . . . . . . . . . . . . . Exploded 26 | . . . . . . 5 . 2 . 2 . 4 3 1 . 5 . 1 4 2 4 . 3 . 3 7 4 8 8 6 . . 8 4 2 6 7 5 9 1 2 5 26 Melee 1 | . . . . . . 1 . . . . . 1 . . . . . . 1 . . . . . . . . . . . . . 1 . . . . . . . . . . Uniques/NPCs Destroyed 1 | . . . . . . . . . . . . . . . . . . . . . . . . . . . . . . . . . . . . . . . . 1 . . . A5 (-3/Lab) Combat | -11 -10 -10 -10 -9 -8 -8 -8 -8 -8 -7 -7 -7 -7 -7 -7 -6 -6 -6 -6 -6 -6 -6 -6 -6 -5 -5 -5 -5 -5 -5 -5 -5 -4 -4 -4 -4 -3 -3 -3 -3 -2 -1 -1 -------- Run | Jun Mat Min Exi Min Mat Gar Mat Gar Mat Fac Was Fac Low Low Zio Pro Fac Was Fac Gar Fac Low Low Dat Pro Fac Gar Fac Ext Cet Arc Hub Fac Upp Upp War Pro Res Arm Lab Res Acc Com Damage Taken 56488 | . 449 322 . 57 . 1383 105 857 397 781 . 5047 619 166 . 279 . . 2587 840 3090 70 164 . 1130 1386 1644 1919 1430 2479 352 921 7467 858 131 842 956 3730 1459 337 1347 2123 8764 Core 5478 | . 114 108 . 11 . 130 7 111 60 216 . 284 65 24 . 5 . . 296 53 168 . . . 152 240 54 59 53 19 . 152 893 22 . 83 32 275 29 . 149 106 1508 Absorbed by Shields 13687 | . . . . . . . . . . . . 307 . 60 . 67 . . 565 216 292 25 69 . 379 436 825 596 879 907 340 114 546 380 124 152 327 1628 1208 . 467 1992 786 Reduced by Siege Mode 3857 | . . . . . . . . . . . . 458 . . . . . . 54 77 199 8 . . 9 44 125 125 61 135 49 25 159 67 6 50 110 310 334 59 95 203 1095 Redirected to Shielding 122 | . . . . . . . . . . 12 . . . . . . . . . . . . . . . 16 . . . . . . . . . . . . . . 75 19 . Ignored by Resistances 2195 | . . . . . . . . . . . . 130 . . . . . . 435 121 138 . . . . 284 399 . . . . . 105 . . . . 573 . . . 10 . Regen/Repaired (Parts) 3946 | . 147 . . . . . 111 . . . . 518 . . 1083 . . . . . . . . . . 51 . . . . . . 811 . . 84 . . . 90 346 520 185 Core Remaining (%) 44 | 100 . . . 6 . . . . 44 . . . . . . 15 . . . . . . . . 21 . . . . . . 42 . . . . 10 . . 76 89 . . Volleys Fired 3976 | 4 42 28 . . 3 24 16 82 23 42 . 369 19 19 . 41 2 15 305 76 196 18 13 . 64 282 187 219 288 94 42 52 271 24 20 17 28 315 215 15 55 411 40 Largest 3 | 2 2 2 . . 2 2 2 2 2 2 . 2 2 2 . 2 1 3 3 2 2 3 2 . 3 2 3 3 1 3 3 3 3 3 3 1 2 3 2 2 2 2 2 Hottest 339 | 60 130 130 . . 98 88 160 178 155 155 . 155 105 82 . 114 60 148 180 173 203 243 105 . 145 173 227 227 113 339 283 283 227 215 220 90 180 234 196 320 280 203 280 Shots Fired 4941 | 8 84 56 . . 6 31 32 145 39 53 . 444 27 26 . 52 2 21 365 102 226 30 15 . 112 296 271 227 292 130 102 95 335 53 28 17 47 398 225 19 63 420 47 Gun 283 | 8 84 56 . . 3 17 32 39 . . . . . . . . . . . . . 5 3 . 26 . . . . . . . 10 . . . . . . . . . . Cannon 3125 | . . . . . 3 . . 66 39 46 . 312 22 11 . 34 2 15 254 90 127 25 6 . 47 197 234 121 179 62 102 95 222 47 26 13 41 250 117 16 36 249 19 Launcher 1533 | . . . . . . 14 . 40 . 7 . 132 5 15 . 18 . 6 111 12 99 . 6 . 39 99 37 106 113 68 . . 103 6 2 4 6 148 108 3 27 171 28 Special . | . . . . . . . . . . . . . . . . . . . . . . . . . . . . . . . . . . . . . . . . . . . . Kinetic 1215 | 4 . . . . 3 3 . 15 18 6 . 56 22 . . 10 2 3 179 53 54 10 3 . 43 56 94 64 58 18 24 41 93 42 11 . 40 112 23 2 8 42 3 Thermal 2193 | 4 84 56 . . 3 14 32 90 21 40 . 256 . 11 . 24 . 12 75 37 73 20 6 . 30 141 140 57 121 44 78 54 139 5 15 13 1 138 94 14 28 207 16 Explosive 1438 | . . . . . . 14 . 37 . 7 . 132 5 15 . 18 . 6 111 12 99 . 6 . 39 87 37 72 113 68 . . 79 6 . 4 6 133 106 3 27 168 28 Electromagnetic 95 | . . . . . . . . 3 . . . . . . . . . . . . . . . . . 12 . 34 . . . . 24 . 2 . . 15 2 . . 3 . Robot Hit Streak 86 | 3 7 11 . . 6 11 7 16 3 2 . 33 15 5 . 17 1 26 29 29 26 10 4 . 9 26 39 43 86 24 67 21 18 15 9 7 15 39 11 6 12 22 20 Robot Miss Streak 8 | 2 6 8 . . 1 4 3 2 4 5 . 2 2 3 . 4 1 2 6 1 5 2 3 . 4 2 3 2 3 5 1 1 4 3 1 . 3 3 2 1 4 3 2 Penetration Max 1 | . . . . . . . . . . . . . . . . . . . . . . . . . . . 1 . . 1 . 1 1 . . . . 1 . . . 1 . Secondary Targets 4 | . 1 2 . . . . 1 . . . . . . . . . . . . . . . . . . . . . . . . . . . . . . . . . . . . Max Gunslinging Chain 1 | . 1 1 . . . . 1 . . . . . . . . . . . . . . . . . . . . . . . . . . . . . . . . . . . . Shots Hit Robots 2734 | 5 78 51 . 2 8 72 28 68 13 10 . 329 21 16 . 30 1 19 299 56 154 15 5 . 61 162 128 125 212 61 87 51 149 32 9 4 28 184 33 7 24 78 19 Core Hits 4942 | 2 81 80 . . 5 56 18 89 6 13 . 458 24 9 . 56 1 6 406 43 325 6 8 . 68 329 112 325 499 217 23 14 298 20 11 20 30 326 311 9 39 328 271 Critical Kills 20 | . . . . . . . . . . . . 5 . . . 1 . . . . 1 2 . . 1 1 . . 2 2 2 1 2 . . . . . . . . . . Critical Parts Destroyed 20 | . . . . . . 1 . . . 2 . 7 . . . 2 . . 4 . . . . . . . . . . . . . 4 . . . . . . . . . . Critical Strikes 136 | . . . . . . 5 . . 1 2 . 14 1 . . 3 . . 16 3 4 2 . . 2 13 7 2 3 4 7 4 16 4 . . 3 17 1 . . 2 . Meltdown 15 | . . . . . . . . . . . . 3 . . . . . . . . 1 2 . . 1 1 . . 2 2 2 1 . . . . . . . . . . . Destroy 1 | . . . . . . . . . . . . . . . . 1 . . . . . . . . . . . . . . . . . . . . . . . . . . . Blast 86 | . . . . . . . . . 1 . . 2 1 . . . . . 12 3 3 . . . 1 7 7 2 1 2 5 3 9 4 . . 3 17 1 . . 2 . Smash 24 | . . . . . . 1 . . . 2 . 9 . . . 2 . . 4 . . . . . . . . . . . . . 6 . . . . . . . . . . Sever 4 | . . . . . . 4 . . . . . . . . . . . . . . . . . . . . . . . . . . . . . . . . . . . . . Impale 6 | . . . . . . . . . . . . . . . . . . . . . . . . . . 5 . . . . . . 1 . . . . . . . . . . Melee Attacks 886 | . . . . 3 7 95 . . . 23 . 130 . . 1 4 . . 140 . . . . . 2 214 1 . . . . . 266 . . . . . . . . . . Impact 518 | . . . . 2 . 27 . . . 23 . 130 . . . 4 . . 121 . . . . . . . . . . . . . 211 . . . . . . . . . . Slashing 201 | . . . . 1 7 68 . . . . . . . . . . . . . . . . . . . 125 . . . . . . . . . . . . . . . . . Piercing 165 | . . . . . . . . . . . . . . . 1 . . . 19 . . . . . 2 88 1 . . . . . 54 . . . . . . . . . . Sneak Attacks 49 | . . . . 1 2 2 . . . 3 . 10 . . . . . . 7 . . . . . . 12 . . . . . . 12 . . . . . . . . . . Combat Hostiles 2 | . . . . . . 1 . . . . . . . . . . . . . . . . . . . 1 . . . . . . . . . . . . . . . . . Follow-up Attacks 8 | . . . . 1 . 5 . . . . . . . . . . . . 2 . . . . . . . . . . . . . . . . . . . . . . . . Damage Inflicted 469820 | 46 1074 738 . 87 339 3626 534 4170 432 892 . 29643 1496 827 . 2778 35 1326 32811 4417 23106 498 761 . 5268 33628 8481 29489 48042 23528 3266 1950 34615 2483 518 2367 3810 43455 42438 1226 5261 42577 27782 Guns 3973 | 46 911 738 . . 45 235 534 787 . . . . . . . . . . . . . 27 70 . 391 . . . . . . . 189 . . . . . . . . . . Cannons 74293 | . . . . . 75 . . 906 417 174 . 6956 567 219 . 556 35 428 8677 2780 3618 471 31 . 1026 4914 5186 3797 7836 1640 3266 1950 2859 1181 346 . 1584 5723 1676 350 761 4118 170 Explosions 379282 | . 163 . . . . 894 . 2477 . 333 . 20627 929 608 . 1960 . 898 22303 1637 19488 . 660 . 3851 26793 3295 25692 40206 21888 . . 28610 1302 172 2367 2226 37732 40762 876 4500 38421 27612 Melee 12219 | . . . . 87 219 2497 . . . 385 . 2060 . . . 262 . . 1831 . . . . . . 1921 . . . . . . 2957 . . . . . . . . . . Ramming 53 | . . . . . . . . . 15 . . . . . . . . . . . . . . . . . . . . . . . . . . . . . . . . 38 . Kinetic 45066 | 13 . . . . 45 15 . 118 219 101 . 1425 567 . . 97 35 80 7720 2493 2670 61 70 . 736 2557 3369 3757 4069 350 693 1086 2128 1067 271 . 1584 3389 1418 . 499 2277 87 Thermal 41293 | 33 1074 738 . . 75 220 534 1575 198 73 . 5616 . 219 . 459 . 348 957 287 948 437 31 . 681 4047 1817 720 3842 1471 2573 864 1451 114 87 107 . 3248 1674 524 262 2159 1830 Explosive 362375 | . . . . . . 894 . 2341 . 333 . 20542 929 608 . 1960 . 898 22303 1637 19488 . 660 . 3851 23706 3295 21463 40131 21707 . . 26160 1302 . 2260 2226 35404 39107 702 4500 38103 25865 Electromagnetic 8814 | . . . . . . . . 136 . . . . . . . . . . . . . . . . . 1397 . 3549 . . . . 1919 . 160 . . 1414 239 . . . . Impact 7436 | . . . . 87 . 704 . . . 385 . 2060 . . . 262 . . 1537 . . . . . . . . . . . . . 2401 . . . . . . . . . . Slashing 2833 | . . . . . 219 1793 . . . . . . . . . . . . . . . . . . . 821 . . . . . . . . . . . . . . . . . Piercing 1950 | . . . . . . . . . . . . . . . . . . . 294 . . . . . . 1100 . . . . . . 556 . . . . . . . . . . Highest Corruption 31 | . 3 3 3 3 . 4 4 4 4 5 7 9 . . . 10 . . 9 . 5 . . . 2 4 . 5 9 15 15 . 15 15 15 15 1 7 4 4 3 18 31 Average Corruption 7 | . 2 3 3 3 . 3 4 4 4 3 7 4 . . . 1 . . 2 . 1 . . . 1 2 . 4 6 9 11 . 12 15 15 9 1 3 2 3 2 14 19 Corruption Purged 106 | . . . . . . . . . . 5 . 19 . . . 1 . . 10 . 8 . . . 2 11 . 5 5 . 15 . . . . . . 19 6 . . . . Corruption Blocked 63 | . . . . . . . . . . . . 2 . . . 8 . . . . . . . . . . . . . . . . . . . 10 . . . . 43 . . Effects 989 | . 7 15 6 1 . 16 10 38 8 21 1 52 . . . 2 . . 18 . 17 . . . 5 36 . 5 39 123 18 . 110 55 34 4 8 32 11 3 19 257 18 Message Errors 229 | . . 3 2 . . 5 2 8 3 5 . 15 . . . . . . 3 . 1 . . . 2 5 . 1 10 32 2 . 20 15 3 1 2 8 5 1 5 65 5 Matter Fused 209 | . 3 4 2 . . 5 3 7 2 7 . 15 . . . . . . 6 . 4 . . . . 15 . 1 6 21 4 . 20 10 8 . . 5 4 1 3 51 2 Heat Flow Errors 128 | . 1 . 1 . . 1 1 6 2 1 . 4 . . . . . . 2 . 2 . . . 1 2 . 1 5 22 2 . 10 6 5 . . . 1 . 3 46 3 Energy Discharges 120 | . . 2 . . . 1 . 1 1 . . 6 . . . 1 . . 3 . 2 . . . 1 3 . . 2 16 2 . 22 6 5 . 4 5 . . 3 32 2 Parts Rejected 11 | . . 1 . . . . . . . 1 . 1 . . . 1 . . . . 1 . . . . 1 . . . . . . 2 . 1 . . 1 . . . 1 . Parts Fused 15 | . . 2 . . . 1 . . . 1 . . . . . . . . . . . . . . . . . . . 3 . . 1 2 1 1 . . . 1 1 1 . Data Loss (minor) 124 | . 2 1 1 . . 2 1 1 . 2 1 7 . . . . . . 4 . 5 . . . . 9 . 2 6 11 4 . 12 7 5 2 . 7 . . 3 28 1 Data Loss (major) 60 | . . 2 . 1 . 1 3 10 . . . 2 . . . . . . . . . . . . 1 1 . . 3 8 . . 6 3 2 . 1 2 . . 1 12 1 Misfires 29 | . . . . . . . . 2 . 4 . . . . . . . . . . 1 . . . . . . . 4 1 . . 4 1 3 . . 2 . . . 5 2 Alerts 25 | . 1 . . . . . . 2 . . . . . . . . . . . . . . . . . . . . 3 6 2 . 4 1 . . 1 1 . . . 4 . Misdirections 6 | . . . . . . . . . . . . . . . . . . . . . . . . . . . . . . . . . 5 . . . . . . . . . 1 Weapon Failures 33 | . . . . . . . . 1 . . . 2 . . . . . . . . 1 . . . . . . . . 3 2 . 4 4 1 . . 1 1 . . 12 1 Overload Shots 4 | . . . . . . . . . . . . 4 . . . . . . . . . . . . . . . . . . . . . . . . . . . . . . . Effects 1 | . . . . . . . . . . . . 1 . . . . . . . . . . . . . . . . . . . . . . . . . . . . . . . Short Circuit 1 | . . . . . . . . . . . . 1 . . . . . . . . . . . . . . . . . . . . . . . . . . . . . . . Overflow Damage 23272 | . 15 . . 21 . 225 . 80 6 306 . 1800 96 49 . 196 . 6 1785 30 536 48 37 . 232 1426 62 890 2676 1317 255 43 2438 126 . 74 356 2484 2300 40 116 2521 680 Projectiles 4039 | . . . . . . . . 36 . . . 335 7 49 . 23 . . 637 11 223 48 11 . 94 318 60 93 482 74 255 43 100 45 . . 158 196 133 10 63 498 37 Explosions 15650 | . 15 . . . . 4 . 44 . 11 . 446 89 . . 5 . 6 442 19 313 . 26 . 138 856 2 797 2194 1243 . . 1457 81 . 74 198 2288 2167 30 53 2009 643 Melee 3583 | . . . . 21 . 221 . . 6 295 . 1019 . . . 168 . . 706 . . . . . . 252 . . . . . . 881 . . . . . . . . 14 . Knockbacks 247 | . . . . 2 . 1 . . . 1 . 24 6 . . . . . 37 8 13 . . . 4 2 12 3 18 2 . 15 33 11 . . 13 22 7 . 2 10 1 Impact 28 | . . . . 1 . 1 . . . 1 . 11 . . . . . . 6 . . . . . . . . . . . . . 8 . . . . . . . . . . Kinetic 205 | . . . . . . . . . . . . 11 6 . . . . . 29 8 12 . . . 4 2 12 3 18 2 . 14 20 11 . . 12 22 6 . 2 10 1 Secondary 14 | . . . . 1 . . . . . . . 2 . . . . . . 2 . 1 . . . . . . . . . . 1 5 . . . 1 . 1 . . . . Self-Inflicted Damage 1990 | . 23 . . . . 64 . 119 7 224 . 156 . . . 40 . . 49 5 95 . 50 . 46 3 45 . 100 155 . . 56 . 21 249 86 232 . . . . 165 Shots 50 | . 1 . . . . 3 . 4 . 3 . 6 . . . 1 . . 3 1 3 . 2 . 2 1 2 . 1 2 . . 3 . 2 3 1 3 . . . . 3 Rammed 2 | . . . . . . . . . 1 . . . . . . . . . . . . . . . . . . . . . . . . . . . . . . . . 1 . Targets Rammed 2 | . . . . . . . . . 1 . . . . . . . . . . . . . . . . . . . . . . . . . . . . . . . . 1 . Kicked . | . . . . . . . . . . . . . . . . . . . . . . . . . . . . . . . . . . . . . . . . . . . . Crushed . | . . . . . . . . . . . . . . . . . . . . . . . . . . . . . . . . . . . . . . . . . . . . Highest Temperature 468 | 20 300 183 123 . 3 178 206 354 468 263 . 404 296 177 . 163 10 96 295 90 424 222 12 . 237 275 386 264 260 364 246 375 342 444 218 30 213 285 200 224 372 343 138 Average Temperature 73 | 15 102 69 72 . 2 26 71 95 157 69 . 74 90 71 . 47 7 44 65 22 128 112 9 . 38 62 75 89 48 102 97 100 58 124 44 11 64 77 29 118 98 78 52 Received Heat Transfer 7619 | . 276 162 . 18 . 180 27 219 81 45 . 1286 252 27 . 48 . . 347 254 704 30 . . 158 161 554 45 24 434 37 58 946 220 20 13 81 161 76 9 24 65 577 Effects 37 | . 1 . . . . . . 1 1 . . 5 . . . . . . . . 1 . . . . 1 1 . 1 6 . 1 6 2 . . . 6 . . 3 1 . Shutdowns 1 | . . . . . . . . . . . . 1 . . . . . . . . . . . . . . . . . . . . . . . . . . . . . . . Energy Bleed 5 | . . . . . . . . 1 . . . 1 . . . . . . . . . . . . . . 1 . . . . . 1 . . . . . . . . 1 . Interference 25 | . 1 . . . . . . . . . . 2 . . . . . . . . 1 . . . . 1 . . 1 5 . . 5 . . . . 6 . . 3 . . Short Circuit 3 | . . . . . . . . . 1 . . 1 . . . . . . . . . . . . . . . . . . . 1 . . . . . . . . . . . Damage (minor) 1 | . . . . . . . . . . . . . . . . . . . . . . . . . . . . . . 1 . . . . . . . . . . . . . Damage (major) 2 | . . . . . . . . . . . . . . . . . . . . . . . . . . . . . . . . . . 2 . . . . . . . . . Siege Activations 114 | . . . . . . . . . . . . 11 . . . . . . 4 6 3 1 1 . 4 1 18 2 3 4 3 3 9 4 2 1 5 10 7 1 2 6 3 Total Turns 22572 | . . . . . . . . . . . . 3628 . . . . . . 4243 225 651 14 7 . 186 5205 489 1044 1099 290 138 71 372 73 25 8 89 1306 950 48 30 2356 25 Longest Duration 5205 | . . . . . . . . . . . . 1152 . . . . . . 3410 75 585 14 7 . 84 5205 74 835 873 107 74 29 267 30 17 8 45 800 908 48 17 2312 14 Robots Corrupted 25 | . . . . . . . . . . . . . . . . . . . . . . . . . . 4 . 12 . . . . 5 . . . . 4 . . . . . Combat Hostiles 24 | . . . . . . . . . . . . . . . . . . . . . . . . . . 4 . 12 . . . . 4 . . . . 4 . . . . . Parts Fried 113 | . . . . 3 . 7 . . 2 5 . 11 . . . . . . 14 . . . . . . 8 . 32 . . . . 20 . . . . 11 . . . . . Impact Corruptions 108 | . . . . 1 . 6 . . 1 10 . 38 . . . 4 . . 20 . . . . . . . . . . . . . 27 . . . . . . . . 1 . Robots Melted 17 | . . . . . . . . 1 . . . 3 . . . . . . . . 1 2 . . 1 1 . . 2 2 2 1 . . . . . . . . . 1 . Combat Hostiles 7 | . . . . . . . . . . . . 1 . . . . . . . . . 2 . . 1 1 . . . 1 . 1 . . . . . . . . . . . Parts Melted 78 | . . 1 . . 1 3 2 4 . . . 18 . . . 1 . . 2 1 4 3 . . 3 7 1 2 7 1 9 4 . . . . . . . . . 4 . Heat Transferred 41347 | 75 1235 915 . . 111 250 1200 2492 300 100 . 7913 . 296 . 629 . 444 1500 311 1183 637 50 . 950 2880 1628 737 3640 1415 2405 777 1164 . 50 200 . 1120 1072 287 222 1754 1405 Parts Sabotaged 3 | . . . . . . . . . . . . . . . . . . . . . . . . . . . . . . . . . 3 . . . . . . . . . . Parts Stolen . | . . . . . . . . . . . . . . . . . . . . . . . . . . . . . . . . . . . . . . . . . . . . Parts Stripped . | . . . . . . . . . . . . . . . . . . . . . . . . . . . . . . . . . . . . . . . . . . . . Power Chain Reactions 59 | . . . . . . . . . . . . . . . . . . . . . . . . . . 8 . 6 2 5 . . 5 . 1 2 1 14 8 . . 5 2 Missiles Intercepted . | . . . . . . . . . . . . . . . . . . . . . . . . . . . . . . . . . . . . . . . . . . . . Alert | -11 -10 -10 -10 -9 -8 -8 -8 -8 -8 -7 -7 -7 -7 -7 -7 -6 -6 -6 -6 -6 -6 -6 -6 -6 -5 -5 -5 -5 -5 -5 -5 -5 -4 -4 -4 -4 -3 -3 -3 -3 -2 -1 -1 ------- Run | Jun Mat Min Exi Min Mat Gar Mat Gar Mat Fac Was Fac Low Low Zio Pro Fac Was Fac Gar Fac Low Low Dat Pro Fac Gar Fac Ext Cet Arc Hub Fac Upp Upp War Pro Res Arm Lab Res Acc Com Peak Influence 8565 | 5 237 215 . 143 176 1322 846 2008 1530 753 236 4029 . . . . 108 90 3651 4037 5423 . . . . 3889 6789 6810 7313 8565 3631 1222 4874 . . . . 4442 5965 . 567 4288 5595 Initial 4089 | . 3 . . . 55 114 644 419 978 695 191 165 . . . . 102 37 . 2555 2118 . . . . 270 2722 3563 3336 4089 3426 1200 429 . . . . 450 2331 . . 236 2744 Average 2531 | 3 91 52 . 92 134 818 676 1312 1357 597 219 1303 . . . . 105 53 910 3293 4631 . . . . 964 4681 5909 5402 5962 3518 874 1539 . . . . 2980 5135 . 315 2958 3263 Maximum Alert Level 5 | . 1 1 . . . 4 3 5 4 3 1 5 . . . . . . 5 5 5 . . . . 5 5 5 5 5 5 4 5 . . . . 5 5 . 2 5 5 Low Security (%) 11 | 100 91 97 . 100 100 10 . . . . 10 4 . . . . 100 100 29 . . . . . . 12 . . . . . . 19 . . . . . . . 33 . . Level 1 12 | . 8 2 . . . 7 . . . 7 90 27 . . . . . . 20 . . . . . . 30 . . . . . . 24 . . . . 4 . . 20 5 . Level 2 10 | . . . . . . 17 70 9 . 72 . 20 . . . . . . 14 . . . . . . 10 . . . . . 22 15 . . . . 10 . . 45 3 . Level 3 6 | . . . . . . 37 29 21 7 19 . 7 . . . . . . 9 . . . . . . 10 . . . . . 55 7 . . . . 10 . . . 5 . Level 4 7 | . . . . . . 27 . 34 92 . . 9 . . . . . . 7 . . . . . . 21 . . . . . 21 3 . . . . 4 . . . 7 . Level 5 18 | . . . . . . . . 35 . . . 8 . . . . . . 5 100 14 . . . . 3 100 11 23 74 100 . 5 . . . . . 10 . . 18 92 High Security 32 | . . . . . . . . . . . . 21 . . . . . . 13 . 85 . . . . 12 . 88 76 25 . . 25 . . . . 68 89 . . 59 7 Max Security . | . . . . . . . . . . . . . . . . . . . . . . . . . . . . . . . . . . . . . . . . . . . . Sterilizations 11 | . . . . . . . . . . . . 1 . . . . . . 1 . 1 . . . . 1 . 1 1 1 . . 1 . . . . 1 1 . . 1 . Squads Dispatched 477 | . 3 1 . . 1 . 2 . . 8 . 53 . . . 1 . . 62 . 32 . . . . 58 . 34 39 14 . 5 42 . . . 1 39 35 . 1 43 3 Investigation 55 | . 2 . . . 1 . . . . 3 . 11 . . . . . . 12 . 1 . . . . 12 . . . . . 1 8 . . . . 2 . . 1 . 1 Extermination 47 | . . . . . . . . . . 1 . 4 . . . . . . 10 . 2 . . . . 9 . . . . . . 8 . . . . 6 1 . . 6 . Reinforcement 60 | . 1 . . . . . . . . 3 . 12 . . . . . . 12 . 1 . . . . 8 . . 5 . . 3 5 . . . . 5 . . . 5 . Assault 300 | . . 1 . . . . . . . 1 . 26 . . . 1 . . 25 . 26 . . . . 29 . 34 34 14 . . 21 . . . 1 25 34 . . 26 2 Garrison 12 | . . . . . . . 2 . . . . . . . . . . . 3 . 2 . . . . . . . . . . 1 . . . . . 1 . . . 3 . Intercept 3 | . . . . . . . . . . . . . . . . . . . . . . . . . . . . . . . . . . . . . . . . . . 3 . Searches Triggered 6 | . . . . . . . . . . . . 1 . . . . . . . . . . . . . 1 . . . . . . 3 . . . . 1 . . . . . Data Miner Redirects 27 | . . . . . . . . . . . . . . . . . . . . . . . . . . 9 . 1 2 . . . 5 . . . . 2 1 . . 6 1 Construction Impeded 40 | . . . . . . . . . . . . 11 . . . . . . 8 . 1 . . . . 6 . . 5 . . . 2 . . . . 2 . . . 5 . Haulers Reinforced 3 | . . . . . . . . . . . . . . . . . . . 1 . . . . . . . . . . . . . . . . . . 2 . . . . . Active Scanning Responses . | . . . . . . . . . . . . . . . . . . . . . . . . . . . . . . . . . . . . . . . . . . . . Cargo Convoy Interrupts . | . . . . . . . . . . . . . . . . . . . . . . . . . . . . . . . . . . . . . . . . . . . . Stealth | -11 -10 -10 -10 -9 -8 -8 -8 -8 -8 -7 -7 -7 -7 -7 -7 -6 -6 -6 -6 -6 -6 -6 -6 -6 -5 -5 -5 -5 -5 -5 -5 -5 -4 -4 -4 -4 -3 -3 -3 -3 -2 -1 -1 --------- Run | Jun Mat Min Exi Min Mat Gar Mat Gar Mat Fac Was Fac Low Low Zio Pro Fac Was Fac Gar Fac Low Low Dat Pro Fac Gar Fac Ext Cet Arc Hub Fac Upp Upp War Pro Res Arm Lab Res Acc Com Distress Signals 34 | . 1 . . . 1 . . . 1 2 . 1 . . . . . . 6 . . . . . . 2 . . 3 2 . 2 5 1 . . . . 2 . 3 1 1 Communications Jammed 52 | . . . . . . . . . . . . . . . . . . . . . . . . . . 8 . . . . . 15 29 . . . . . . . . . . Distress Signals 33 | . . . . . . . . . . . . . . . . . . . . . . . . . . 8 . . . . . 15 10 . . . . . . . . . . Times Spotted 1947 | . 20 17 . 4 6 30 8 43 13 17 6 188 8 2 . 26 . . 148 30 94 4 5 . 35 126 31 56 104 135 12 15 201 14 6 12 27 144 54 3 22 108 173 Peak Tracking Total 92 | . 3 3 . 3 3 8 2 4 6 6 6 22 5 1 . 7 . . 13 6 25 4 4 . 6 15 6 20 27 21 1 6 16 5 5 11 10 21 25 3 6 13 92 Tactical Retreats 98 | . 2 3 . . . 3 1 . 1 4 . 8 . . . . . . 10 . 1 . . . 2 12 2 1 . . . . 42 . . . . 1 4 . . . 1 Traps | -11 -10 -10 -10 -9 -8 -8 -8 -8 -8 -7 -7 -7 -7 -7 -7 -6 -6 -6 -6 -6 -6 -6 -6 -6 -5 -5 -5 -5 -5 -5 -5 -5 -4 -4 -4 -4 -3 -3 -3 -3 -2 -1 -1 ------- Run | Jun Mat Min Exi Min Mat Gar Mat Gar Mat Fac Was Fac Low Low Zio Pro Fac Was Fac Gar Fac Low Low Dat Pro Fac Gar Fac Ext Cet Arc Hub Fac Upp Upp War Pro Res Arm Lab Res Acc Com Traps Triggered 76 | . 4 . . . . 4 . 10 . 4 . 2 . . . . 1 . 5 10 4 . . . . 1 7 1 7 . . . 8 1 . . . 3 . . . 3 1 Indirectly . | . . . . . . . . . . . . . . . . . . . . . . . . . . . . . . . . . . . . . . . . . . . . Trap Hack Attempts 33 | . . . . . . . . . . . . . . . . . . . 26 . . . . . . 7 . . . . . . . . . . . . . . . . . Triggered 1 | . . . . . . . . . . . . . . . . . . . 1 . . . . . . . . . . . . . . . . . . . . . . . . Disarmed 24 | . . . . . . . . . . 6 . . . . . . . . 12 . . . . . . 6 . . . . . . . . . . . . . . . . . Reprogrammed 25 | . . . . . . . . . . 6 . . . . . . . . 8 . . . . . . 4 . . . . . . 7 . . . . . . . . . . Reused 10 | . . . . . . . . . . 5 . . . . . . . . 1 . . . . . . 3 . . . . . . 1 . . . . . . . . . . Traps Extracted . | . . . . . . . . . . . . . . . . . . . . . . . . . . . . . . . . . . . . . . . . . . . . Installed . | . . . . . . . . . . . . . . . . . . . . . . . . . . . . . . . . . . . . . . . . . . . . Triggered 39 | . . . . . . . . . . 6 . 2 . . . . . . 1 . . . . . 2 3 . . . . . . 1 . . 24 . . . . . . . Most Traps Carried 1 | . . . . . . . . . . . . . . . . . . . . . . . . . 1 1 . . . . . . . . . . . . . . . . . Machines | -11 -10 -10 -10 -9 -8 -8 -8 -8 -8 -7 -7 -7 -7 -7 -7 -6 -6 -6 -6 -6 -6 -6 -6 -6 -5 -5 -5 -5 -5 -5 -5 -5 -4 -4 -4 -4 -3 -3 -3 -3 -2 -1 -1 ---------- Run | Jun Mat Min Exi Min Mat Gar Mat Gar Mat Fac Was Fac Low Low Zio Pro Fac Was Fac Gar Fac Low Low Dat Pro Fac Gar Fac Ext Cet Arc Hub Fac Upp Upp War Pro Res Arm Lab Res Acc Com Machines Disabled 209 | . 1 . . . . 4 . 6 4 4 . 14 1 . . . . . 7 11 27 . . . 4 7 15 11 5 2 3 4 35 . . . 2 12 11 5 2 11 1 Max in Single Turn 17 | . 1 . . . . 1 . 1 1 3 . 4 1 . . . . . 2 1 17 . . . 1 2 1 2 2 2 1 2 6 . . . 2 3 1 2 1 2 1 Garrison Access 25 | . . . . . . . . . . 2 . 4 . . . . . . 3 . 1 . . . . 3 . 2 . . . . 4 . . . . 1 . . 2 3 . Garrison Relay 17 | . . . . . . 3 . 4 . . . . . . . . . . . 4 . . . . . . 6 . . . . . . . . . . . . . . . . Network Hub 1 | . . . . . . . . . . . . . . . . . . . . . . . . . . . . . . . . 1 . . . . . . . . . . . Energy Cycler 1 | . . . . . . . . . . . . . . . . . . . . . . . . . . . . . . . . . . . . . . . . . . 1 . Machines Repaired 1 | . . . . . . . . . . . . . . . . . . . . . . . . . . . . . . . . 1 . . . . . . . . . . . Machines Sabotaged . | . . . . . . . . . . . . . . . . . . . . . . . . . . . . . . . . . . . . . . . . . . . . Overloaded Fab Kills . | . . . . . . . . . . . . . . . . . . . . . . . . . . . . . . . . . . . . . . . . . . . . Hacking | -11 -10 -10 -10 -9 -8 -8 -8 -8 -8 -7 -7 -7 -7 -7 -7 -6 -6 -6 -6 -6 -6 -6 -6 -6 -5 -5 -5 -5 -5 -5 -5 -5 -4 -4 -4 -4 -3 -3 -3 -3 -2 -1 -1 --------- Run | Jun Mat Min Exi Min Mat Gar Mat Gar Mat Fac Was Fac Low Low Zio Pro Fac Was Fac Gar Fac Low Low Dat Pro Fac Gar Fac Ext Cet Arc Hub Fac Upp Upp War Pro Res Arm Lab Res Acc Com Machines Accessed 227 | . 9 1 2 . 4 3 2 3 3 24 . 36 . . . . . . 35 2 4 . 1 4 1 35 1 2 . . . 2 36 1 1 6 . 5 . . . 2 2 Terminals 110 | . 6 . . . 3 3 . 3 2 11 . 16 . . . . . . 16 2 2 . . . 1 18 1 1 . . . 2 16 . 1 . . 3 . . . 1 2 Fabricators 27 | . . . . . . . . . . 3 . 6 . . . . . . 6 . . . . . . 5 . . . . . . 6 . . . . 1 . . . . . Repair Stations 11 | . 1 . . . . . 1 . . 1 . 2 . . . . . . 2 . . . . . . 1 . . . . . . 2 . . . . 1 . . . . . Recycling Units 33 | . 2 . . . . . . . 1 5 . 5 . . . . . . 6 . 1 . . . . 6 . 1 . . . . 6 . . . . . . . . . . Scanalyzers 11 | . . . . . . . . . . 2 . 4 . . . . . . 2 . . . . . . 1 . . . . . . 2 . . . . . . . . . . Garrison Access 20 | . . . . . 1 . 1 . . 2 . 3 . . . . . . 3 . 1 . . . . 4 . . . . . . 4 . . . . . . . . 1 . Total Hacks 856 | . 22 1 2 . 10 6 4 9 11 94 . 138 . . . . . . 106 6 11 . 1 29 5 153 1 7 . . . 12 177 1 1 12 . 23 . . . 4 10 Successful 548 | . 12 1 2 . 5 2 3 2 7 65 . 96 . . . . . . 72 . 4 . 1 29 5 91 1 3 . . . 6 114 1 1 12 . 13 . . . . . Failed 302 | . 9 . . . 4 4 1 7 3 28 . 41 . . . . . . 34 6 7 . . . . 62 . 4 . . . 6 62 . . . . 10 . . . 4 10 Catastrophic 52 | . 2 . . . 2 2 . 1 1 4 . 4 . . . . . . 2 . 2 . . . . 5 . 2 . . . 2 13 . . . . 3 . . . 2 5 Database Lockouts 6 | . 1 . . . 1 . . . 1 1 . 1 . . . . . . . . . . . . . . . . . . . . 1 . . . . . . . . . . Manual 360 | . 10 . 1 . 6 . . . 9 47 . 58 . . . . . . 48 . 4 . . . 1 76 . 3 . 1 . 11 78 . . 1 . 5 . . . . 1 Terminals 477 | . 13 . . . 9 6 . 9 8 54 . 63 . . . . . . 46 6 4 . . . 5 101 1 2 . . . 12 111 . 1 . . 15 . . . 1 10 Fabricators 97 | . . . . . . . . . . 5 . 23 . . . . . . 25 . . . . . . 20 . . . . . . 21 . . . . 3 . . . . . Repair Stations 49 | . 7 . . . . . 2 . . 5 . 14 . . . . . . 4 . . . . . . 2 . . . . . . 10 . . . . 5 . . . . . Recycling Units 116 | . 2 . . . . . . . 3 23 . 19 . . . . . . 14 . 4 . . . . 19 . 5 . . . . 27 . . . . . . . . . . Scanalyzers 37 | . . . . . . . . . . 5 . 16 . . . . . . 11 . . . . . . 3 . . . . . . 2 . . . . . . . . . . Garrison Access 34 | . . . . . 1 . 2 . . 2 . 3 . . . . . . 6 . 3 . . . . 8 . . . . . . 6 . . . . . . . . 3 . Terminal Hacks 224 | . 2 1 2 . 3 2 . 2 2 24 . 23 . . . . . . 20 . 1 . 1 29 5 34 1 . . . . 5 45 1 1 12 . 8 . . . . . Record 28 | . 1 . 1 . . . . . 1 . . . . . . . . . . . . . . 11 5 1 . . . . . . 1 . 1 6 . . . . . . . Part Schematic 32 | . . . . . . . . . 1 4 . 4 . . . . . . 2 . . . . 10 . 5 . . . . . . 6 . . . . . . . . . . Robot Schematic 5 | . . . . . . . . . . . . . . . . . . . . . . . . 5 . . . . . . . . . . . . . . . . . . . Robot Analysis 16 | . 1 . . . 1 . . . . . . 5 . . . . . . 2 . . . . . . 5 . . . . . . 2 . . . . . . . . . . Prototype ID Bank 16 | . . . . . . . . . . 2 . 1 . . . . . . . . . . . 3 . . . . . . . . 5 . . 5 . . . . . . . Open Door 4 | . . 1 . . . . . . . . . . . . . . . . . . . . 1 . . . . . . . . . . 1 . 1 . . . . . . . Branch Access Points 6 | . . . . . 1 . . . . 1 . . . . . . . . 1 . 1 . . . . 1 . . . . . . 1 . . . . . . . . . . Emergency Access Points 7 | . . . . . . . . 1 . 1 . 1 . . . . . . . . . . . . . 1 1 . . . . 1 1 . . . . . . . . . . Machine Index 2 | . . . . . . . . . . 1 . . . . . . . . 1 . . . . . . . . . . . . . . . . . . . . . . . . Terminal Index 4 | . . . . . . . . . . 1 . 1 . . . . . . . . . . . . . . . . . . . . 1 . . . . 1 . . . . . Fabricator Index 2 | . . . . . . . . . . . . 1 . . . . . . . . . . . . . . . . . . . . 1 . . . . . . . . . . Repair Station Index 1 | . . . . . . . . . . . . . . . . . . . . . . . . . . . . . . . . . 1 . . . . . . . . . . Recycling Unit Index 5 | . . . . . . . . . . 1 . 1 . . . . . . 1 . . . . . . . . . . . . . 1 . . . . 1 . . . . . Scanalyzer Index 1 | . . . . . . . . . . . . . . . . . . . . . . . . . . . . . . . . . 1 . . . . . . . . . . Garrison Index 1 | . . . . . . . . . . . . . . . . . . . . . . . . . . . . . . . . . 1 . . . . . . . . . . Alert Level 5 | . . . . . . . . . . . . . . . . . . . 2 . . . . . . 1 . . . . . . 2 . . . . . . . . . . Unreport Threat 20 | . . . . . . . . . . 2 . 1 . . . . . . 4 . . . . . . 4 . . . . . 4 5 . . . . . . . . . . Locate Traps 7 | . . . . . . . . . . 1 . 2 . . . . . . 1 . . . . . . 1 . . . . . . . . . . . 2 . . . . . Disarm Traps 5 | . . . . . . . . . . 1 . . . . . . . . 2 . . . . . . 2 . . . . . . . . . . . . . . . . . Reprogram Traps 7 | . . . . . . . . . . 2 . . . . . . . . 1 . . . . . . 1 . . . . . . 3 . . . . . . . . . . Dispatch Records 1 | . . . . . . . . . . 1 . . . . . . . . . . . . . . . . . . . . . . . . . . . . . . . . . Maintenance Status 2 | . . . . . . . . . . 1 . . . . . . . . . . . . . . . . . . . . . . 1 . . . . . . . . . . Surveillance Status 1 | . . . . . . . . . . . . . . . . . . . . . . . . . . . . . . . . . 1 . . . . . . . . . . Patrol Status 5 | . . . . . . . . . . 1 . 1 . . . . . . 1 . . . . . . . . . . . . . 1 . . . . 1 . . . . . Recall Investigation 6 | . . . . . . . . . . . . 2 . . . . . . . . . . . . . 3 . . . . . . 1 . . . . . . . . . . Recall Extermination 8 | . . . . . . . . . . . . 1 . . . . . . . . . . . . . 3 . . . . . . 4 . . . . . . . . . . Hauler Manifests 5 | . . . . . . . . . . 1 . . . . . . . . 1 . . . . . . 1 . . . . . . 1 . . . . 1 . . . . . Registered Prototypes 1 | . . . . . . . . . . . . . . . . . . . . . . . . . . 1 . . . . . . . . . . . . . . . . . Zone Layout 17 | . . . . . 1 . . . . 3 . 2 . . . . . . 1 . . . . . . 4 . . . . . . 4 . . . . 2 . . . . . Garrison Registry 2 | . . . . . . 1 . 1 . . . . . . . . . . . . . . . . . . . . . . . . . . . . . . . . . . . Security Stations 1 | . . . . . . 1 . . . . . . . . . . . . . . . . . . . . . . . . . . . . . . . . . . . . . Derelict Proto ID Bank 1 | . . . 1 . . . . . . . . . . . . . . . . . . . . . . . . . . . . . . . . . . . . . . . . Fabricator Hacks 64 | . . . . . . . . . . 4 . 13 . . . . . . 17 . . . . . . 13 . . . . . . 15 . . . . 2 . . . . . Network Status 1 | . . . . . . . . . . 1 . . . . . . . . . . . . . . . . . . . . . . . . . . . . . . . . . Load Schematic 36 | . . . . . . . . . . 1 . 7 . . . . . . 10 . . . . . . 8 . . . . . . 9 . . . . 1 . . . . . Build 27 | . . . . . . . . . . 2 . 6 . . . . . . 7 . . . . . . 5 . . . . . . 6 . . . . 1 . . . . . Repair Station Hacks 34 | . 6 . . . . . 2 . . 2 . 12 . . . . . . 1 . . . . . . 2 . . . . . . 8 . . . . 1 . . . . . Scan Component 19 | . 3 . . . . . 1 . . 2 . 6 . . . . . . 1 . . . . . . 1 . . . . . . 4 . . . . 1 . . . . . Repair 14 | . 3 . . . . . 1 . . . . 6 . . . . . . . . . . . . . 1 . . . . . . 3 . . . . . . . . . . Refit 1 | . . . . . . . . . . . . . . . . . . . . . . . . . . . . . . . . . 1 . . . . . . . . . . Recycling Unit Hacks 28 | . 2 . . . . . . . 3 5 . 3 . . . . . . 1 . 1 . . . . 3 . 1 . . . . 9 . . . . . . . . . . Retrieve Matter 3 | . . . . . . . . . . . . . . . . . . . . . . . . . . . . . . . . . 3 . . . . . . . . . . Retrieve Components 25 | . 2 . . . . . . . 3 5 . 3 . . . . . . 1 . 1 . . . . 3 . 1 . . . . 6 . . . . . . . . . . Scanalyzer 35 | . . . . . . . . . . 3 . 16 . . . . . . 11 . . . . . . 3 . . . . . . 2 . . . . . . . . . . Insert Component 20 | . . . . . . . . . . 2 . 8 . . . . . . 6 . . . . . . 2 . . . . . . 2 . . . . . . . . . . Analyze 15 | . . . . . . . . . . 1 . 8 . . . . . . 5 . . . . . . 1 . . . . . . . . . . . . . . . . . Garrison Access Hacks 17 | . . . . . 1 . 1 . . 2 . 3 . . . . . . 2 . . . . . . 4 . . . . . . 4 . . . . . . . . . . Unlock Access 6 | . . . . . 1 . 1 . . . . . . . . . . . 2 . . . . . . 1 . . . . . . 1 . . . . . . . . . . Seal Access 11 | . . . . . . . . . . 2 . 3 . . . . . . . . . . . . . 3 . . . . . . 3 . . . . . . . . . . Unauthorized Hacks 146 | . 2 . . . 1 . . . 2 25 . 26 . . . . . . 20 . 2 . . . . 32 . 2 . . . 1 31 . . . . 2 . . . . . Terminals 81 | . 2 . . . 1 . . . 2 12 . 14 . . . . . . 11 . . . . . . 21 . . . . . 1 15 . . . . 2 . . . . . Track 10 | . . . . . . . . . . 1 . 2 . . . . . . . . . . . . . 3 . . . . . . 4 . . . . . . . . . . Assimilate 23 | . . . . . 1 . . . . 3 . 4 . . . . . . 4 . . . . . . 9 . . . . . . 2 . . . . . . . . . . Botnet 39 | . 2 . . . . . . . 2 6 . 6 . . . . . . 6 . . . . . . 8 . . . . . . 8 . . . . 1 . . . . . Operators 8 | . . . . . . . . . . 2 . 2 . . . . . . 1 . . . . . . 1 . . . . . . 1 . . . . 1 . . . . . Sabotage 1 | . . . . . . . . . . . . . . . . . . . . . . . . . . . . . . . . 1 . . . . . . . . . . . Fabricators 13 | . . . . . . . . . . . . 2 . . . . . . 5 . . . . . . 3 . . . . . . 3 . . . . . . . . . . Liberate 1 | . . . . . . . . . . . . . . . . . . . 1 . . . . . . . . . . . . . . . . . . . . . . . . Recompile 12 | . . . . . . . . . . . . 2 . . . . . . 4 . . . . . . 3 . . . . . . 3 . . . . . . . . . . Repair Stations . | . . . . . . . . . . . . . . . . . . . . . . . . . . . . . . . . . . . . . . . . . . . . Recycling Units 52 | . . . . . . . . . . 13 . 10 . . . . . . 4 . 2 . . . . 8 . 2 . . . . 13 . . . . . . . . . . Monitor 3 | . . . . . . . . . . 3 . . . . . . . . . . . . . . . . . . . . . . . . . . . . . . . . . Reject 23 | . . . . . . . . . . 5 . 4 . . . . . . 2 . 1 . . . . 4 . 1 . . . . 6 . . . . . . . . . . Recyclers 5 | . . . . . . . . . . 1 . 1 . . . . . . . . . . . . . 1 . 1 . . . . 1 . . . . . . . . . . Mask 21 | . . . . . . . . . . 4 . 5 . . . . . . 2 . 1 . . . . 3 . . . . . . 6 . . . . . . . . . . Scanalyzers . | . . . . . . . . . . . . . . . . . . . . . . . . . . . . . . . . . . . . . . . . . . . . Garrison Access . | . . . . . . . . . . . . . . . . . . . . . . . . . . . . . . . . . . . . . . . . . . . . Data Cores Recovered 2 | . . . . . . . . . . . . 1 . . . . . . . . . . . . . . . . . . . . . . . . . 1 . . . . . Used . | . . . . . . . . . . . . . . . . . . . . . . . . . . . . . . . . . . . . . . . . . . . . Hacking Detections 163 | . 7 . . . 3 3 1 3 2 16 . 26 . . . . . . 30 2 4 . . . . 29 1 2 . 1 . 2 22 . . . . 5 . . . 2 2 Full Trace Events 43 | . 1 . . . . 1 . 3 . 3 . 9 . . . . . . 8 2 1 . . . . 8 . . . . . . 5 . . . . 2 . . . . . Feedback Events 8 | . . . . . . . . . . 2 . 1 . . . . . . . . . . . . . 4 . . . . . . 1 . . . . . . . . . . Corruption 4 | . . . . . . . . . . . . 1 . . . . . . . . . . . . . 2 . . . . . . 1 . . . . . . . . . . Hackware Fried 4 | . . . . . . . . . . 2 . . . . . . . . . . . . . . . 2 . . . . . . . . . . . . . . . . . Feedback Blocked . | . . . . . . . . . . . . . . . . . . . . . . . . . . . . . . . . . . . . . . . . . . . . Robot Schematics Acquired 8 | . . . . . . . . . . . . . . . 3 . . . . . . . . 5 . . . . . . . . . . . . . . . . . . . Robots Built . | . . . . . . . . . . . . . . . . . . . . . . . . . . . . . . . . . . . . . . . . . . . . Authchips . | . . . . . . . . . . . . . . . . . . . . . . . . . . . . . . . . . . . . . . . . . . . . Time . | . . . . . . . . . . . . . . . . . . . . . . . . . . . . . . . . . . . . . . . . . . . . Total Robot Build Rating . | . . . . . . . . . . . . . . . . . . . . . . . . . . . . . . . . . . . . . . . . . . . . Part Schematics Acquired 60 | . . . . . . . . . 1 5 . 11 . . 16 . . . 5 . . . . 10 . 6 . . . . . . 6 . . . . . . . . . . Parts Built 34 | . . . . . . . . . . 2 . 8 . . . . . . 10 . . . . . . 6 . . . . . . 7 . . . . 1 . . . . . Authchips 12 | . . . . . . . . . . . . 2 . . . . . . 4 . . . . . . 3 . . . . . . 3 . . . . . . . . . . Time 1986 | . . . . . . . . . . 173 . 307 . . . . . . 400 . . . . . . 523 . . . . . . 552 . . . . 31 . . . . . Total Part Build Rating 214 | . . . . . . . . . . 12 . 41 . . . . . . 60 . . . . . . 41 . . . . . . 55 . . . . 5 . . . . . Parts Repaired 14 | . 3 . . . . . 1 . . . . 6 . . . . . . . . . . . . . 1 . . . . . . 3 . . . . . . . . . . Time 662 | . 90 . . . . . 32 . . . . 330 . . . . . . . . . . . . . 25 . . . . . . 185 . . . . . . . . . . Parts Recycled . | . . . . . . . . . . . . . . . . . . . . . . . . . . . . . . . . . . . . . . . . . . . . Recycled Matter . | . . . . . . . . . . . . . . . . . . . . . . . . . . . . . . . . . . . . . . . . . . . . Retrieved Matter . | . . . . . . . . . . . . . . . . . . . . . . . . . . . . . . . . . . . . . . . . . . . . Retrieved Components 79 | . 16 . . . . . . . . 15 . 5 . . . . . . . . . . . . . 11 . . . . . . 32 . . . . . . . . . . Parts Scanalyzed 12 | . . . . . . . . . . 1 . 7 . . . . . . 3 . . . . . . 1 . . . . . . . . . . . . . . . . . Part Schematics Acquired 12 | . . . . . . . . . . 1 . 7 . . . . . . 3 . . . . . . 1 . . . . . . . . . . . . . . . . . Parts Damaged 2 | . . . . . . . . . . . . 2 . . . . . . . . . . . . . . . . . . . . . . . . . . . . . . . Bothacking | -11 -10 -10 -10 -9 -8 -8 -8 -8 -8 -7 -7 -7 -7 -7 -7 -6 -6 -6 -6 -6 -6 -6 -6 -6 -5 -5 -5 -5 -5 -5 -5 -5 -4 -4 -4 -4 -3 -3 -3 -3 -2 -1 -1 ------------ Run | Jun Mat Min Exi Min Mat Gar Mat Gar Mat Fac Was Fac Low Low Zio Pro Fac Was Fac Gar Fac Low Low Dat Pro Fac Gar Fac Ext Cet Arc Hub Fac Upp Upp War Pro Res Arm Lab Res Acc Com Used RIF Installer . | . . . . . . . . . . . . . . . . . . . . . . . . . . . . . . . . . . . . . . . . . . . . Robots Hacked . | . . . . . . . . . . . . . . . . . . . . . . . . . . . . . . . . . . . . . . . . . . . . Non-combat . | . . . . . . . . . . . . . . . . . . . . . . . . . . . . . . . . . . . . . . . . . . . . Combat . | . . . . . . . . . . . . . . . . . . . . . . . . . . . . . . . . . . . . . . . . . . . . Robot Hacks Applied . | . . . . . . . . . . . . . . . . . . . . . . . . . . . . . . . . . . . . . . . . . . . . Relay Couplers Released 92 | . . . . . . 11 . 19 . 4 . . . . . . . . 9 15 1 . . . . . 25 3 . . . . . . . . . 2 . . 2 1 . Machine Destruction 85 | . . . . . . 11 . 19 . . . . . . . . . . 6 15 1 . . . . . 25 3 . . . . . . . . . 2 . . 2 1 . Programmers 7 | . . . . . . . . . . 4 . . . . . . . . 3 . . . . . . . . . . . . . . . . . . . . . . . . Fabnet Peak Effective % . | . . . . . . . . . . . . . . . . . . . . . . . . . . . . . . . . . . . . . . . . . . . . Robots Rewired 23 | . . . . . . 3 . 6 . . . . 1 . . . 1 . . 2 . . . . . . 6 . 3 . . . . . . . 1 . . . . . . Allies Hacked 2 | . . . . . . . . . . . . . . . . . . . . . . . . . . . . 2 . . . . . . . . . . . . . . . Hacks Repelled 1 | . . . . . . . . . . . . . . . . 1 . . . . . . . . . . . . . . . . . . . . . . . . . . . Allies | -11 -10 -10 -10 -9 -8 -8 -8 -8 -8 -7 -7 -7 -7 -7 -7 -6 -6 -6 -6 -6 -6 -6 -6 -6 -5 -5 -5 -5 -5 -5 -5 -5 -4 -4 -4 -4 -3 -3 -3 -3 -2 -1 -1 -------- Run | Jun Mat Min Exi Min Mat Gar Mat Gar Mat Fac Was Fac Low Low Zio Pro Fac Was Fac Gar Fac Low Low Dat Pro Fac Gar Fac Ext Cet Arc Hub Fac Upp Upp War Pro Res Arm Lab Res Acc Com Total Allies 74 | . . 1 . 2 1 3 . 6 . 1 . 2 1 . 10 . 1 . 4 6 . . . . 1 7 6 . 11 5 . . 2 . . . 1 3 . . . . . Largest Group 10 | . . 1 1 3 4 6 . 3 3 1 . 2 1 1 10 10 1 1 3 4 3 . . . 1 3 6 6 8 6 . . 2 . . . 1 3 . . . . . Highest-Rated Group 639 | . . 31 31 85 95 167 . 90 82 20 . 52 30 30 279 279 29 29 92 327 327 . . . 96 78 216 216 408 639 . . 45 . . . 48 138 . . . . . Highest-Rated Ally 159 | . . 31 31 31 31 39 . 39 39 20 . 26 30 30 51 51 29 29 41 116 116 . . . 96 26 43 43 159 159 . . 26 . . . 48 46 . . . . . Warlord Squad Rendezvous 8 | . . . . . . . . . . . . . . . . . . . 6 . . . . . . 2 . . . . . . . . . . . . . . . . . Dakka 2 | . . . . . . . . . . . . . . . . . . . 2 . . . . . . . . . . . . . . . . . . . . . . . . Infantry 1 | . . . . . . . . . . . . . . . . . . . 1 . . . . . . . . . . . . . . . . . . . . . . . . Muscle 1 | . . . . . . . . . . . . . . . . . . . . . . . . . . 1 . . . . . . . . . . . . . . . . . Ranger 1 | . . . . . . . . . . . . . . . . . . . 1 . . . . . . . . . . . . . . . . . . . . . . . . Pyro 1 | . . . . . . . . . . . . . . . . . . . 1 . . . . . . . . . . . . . . . . . . . . . . . . Chimera 1 | . . . . . . . . . . . . . . . . . . . 1 . . . . . . . . . . . . . . . . . . . . . . . . Ghost 1 | . . . . . . . . . . . . . . . . . . . . . . . . . . 1 . . . . . . . . . . . . . . . . . Total Orders 38 | . . . . . . . . . . . . . . . . . . 2 . . 2 . 3 . . 4 . 10 . 5 . . 2 . . . . 6 . . 4 . . STAY 18 | . . . . . . . . . . . . . . . . . . 1 . . 2 . . . . 2 . 7 . 5 . . 1 . . . . . . . . . . FOLLOW 7 | . . . . . . . . . . . . . . . . . . 1 . . . . . . . 2 . 3 . . . . 1 . . . . . . . . . . EXPLORE 11 | . . . . . . . . . . . . . . . . . . . . . . . 3 . . . . . . . . . . . . . . 4 . . 4 . . RETURN 2 | . . . . . . . . . . . . . . . . . . . . . . . . . . . . . . . . . . . . . . 2 . . . . . Ally Attacks 603 | . . . . 11 17 49 . 57 34 . . . . . . 46 . . 4 41 18 . . . 11 . . 95 13 190 . . . . . . 6 11 . . . . . Total Damage 18257 | . . . . 193 167 760 . 1280 775 . . . . . . 962 . . 56 2124 1768 . . . 332 . . 2418 262 6594 . . . . . . 172 394 . . . . . Kills 126 | . . . . 5 1 10 . 12 8 . . . . . . 3 . . . 12 6 . . . 3 . . 15 2 46 . . . . . . 1 2 . . . . . Allies Corrupted 3 | . . . . . . . . . . . . . . . . 1 . . 1 . . . . . . . . . . . . . . . . . 1 . . . . . . Allies Melted 8 | . . . . . . . . . . . . . . . . . . . 2 2 1 . . . . . . . . 1 . . . . . 1 . . . . 1 . . Intel | -11 -10 -10 -10 -9 -8 -8 -8 -8 -8 -7 -7 -7 -7 -7 -7 -6 -6 -6 -6 -6 -6 -6 -6 -6 -5 -5 -5 -5 -5 -5 -5 -5 -4 -4 -4 -4 -3 -3 -3 -3 -2 -1 -1 ------- Run | Jun Mat Min Exi Min Mat Gar Mat Gar Mat Fac Was Fac Low Low Zio Pro Fac Was Fac Gar Fac Low Low Dat Pro Fac Gar Fac Ext Cet Arc Hub Fac Upp Upp War Pro Res Arm Lab Res Acc Com Robot Analysis Total 16 | . 1 . . . 1 . . . . . . 5 . . . . . . 2 . . . . . . 5 . . . . . . 2 . . . . . . . . . . Derelict Logs Recovered 13 | . . 2 . 1 . . . . . . . . 3 . . 1 . . . . . 1 . . 2 . . . . . . . . 1 2 . . . . . . . . Drone Launches 12 | . . . . . . . . . . . . . . . . . . . . . . . 3 . . . . . . . . . . . . . . 5 . . 4 . . Drone Recoveries 6 | . . . . . . . . . . . . . . . . . . . . . . . 2 . . . . . . . . . . . . . . 2 . . 2 . . Exploration | -11 -10 -10 -10 -9 -8 -8 -8 -8 -8 -7 -7 -7 -7 -7 -7 -6 -6 -6 -6 -6 -6 -6 -6 -6 -5 -5 -5 -5 -5 -5 -5 -5 -4 -4 -4 -4 -3 -3 -3 -3 -2 -1 -1 ------------- Run | Jun Mat Min Exi Min Mat Gar Mat Gar Mat Fac Was Fac Low Low Zio Pro Fac Was Fac Gar Fac Low Low Dat Pro Fac Gar Fac Ext Cet Arc Hub Fac Upp Upp War Pro Res Arm Lab Res Acc Com Turns Passed 101554 | 26 1291 1059 387 199 294 1243 420 1855 376 1343 50 7654 634 557 1517 1269 37 495 8277 2062 3190 2556 1485 183 3453 10461 4741 4103 2144 3383 608 630 8090 1205 751 1437 1339 6489 4606 987 1703 6608 357 Spaces Moved 57190 | 13 739 483 275 140 202 712 235 1185 164 1826 143 6909 340 337 1091 799 20 322 6160 680 1440 1035 399 77 1287 7756 1647 1914 513 367 203 194 9726 448 266 615 471 2107 1343 302 594 1605 106 Core 618 | . . . . . . . . . . . . . . . . . . . . . . . . . . . . . . . . . 611 . . . . . . . . . 7 Treads 13017 | . . . . . . 6 . . . . . 168 . . . . . . 240 575 134 1035 399 77 1287 43 1646 33 85 221 104 85 177 394 266 615 460 1025 1343 302 594 1605 98 Legs 133 | 13 120 . . . . . . . . . . . . . . . . . . . . . . . . . . . . . . . . . . . . . . . . . . Wheels 15661 | . 619 483 275 140 202 706 235 1185 164 433 . 558 340 337 1091 799 20 322 605 105 1306 . . . . 631 1 1881 428 146 99 109 1294 54 . . 11 1082 . . . . . Hover 849 | . . . . . . . . . . . . . . . . . . . . . . . . . . . . . . . . . 849 . . . . . . . . . . Flight 26912 | . . . . . . . . . . 1393 143 6183 . . . . . . 5315 . . . . . . 7082 . . . . . . 6795 . . . . . . . . . 1 Fastest Speed 6 | 120 120 135 135 135 120 120 105 120 120 31 31 28 150 130 115 131 135 135 21 145 130 240 240 240 240 29 160 145 145 160 145 145 6 129 252 166 180 161 247 161 238 237 25 Average Speed 107 | 120 134 135 135 135 124 123 119 120 133 57 31 44 164 144 130 135 135 135 43 225 147 240 240 240 240 44 225 149 160 209 196 186 46 237 252 219 250 218 248 175 246 238 226 Slowest Speed 560 | 120 400 135 135 135 150 560 120 120 135 150 31 320 165 165 131 155 135 135 240 240 240 240 240 240 240 312 233 233 241 243 243 240 320 252 252 252 252 340 254 247 247 241 241 Overloaded Moves 53 | . . . . . . . . . . . . . . . . . . . . . . . . . . . . . . . . . 53 . . . . . . . . . . Propulsion Burnouts . | . . . . . . . . . . . . . . . . . . . . . . . . . . . . . . . . . . . . . . . . . . . . Robots Hopped 142 | . . . . . . . . . . 4 . 40 . . . . . . 28 . . . . . . 32 . . . . . . 38 . . . . . . . . . . Cave-ins Triggered 5 | . . . . . . . . . . 1 . . . . . . . . 1 . . . . . . . . . . . . . . . . . . 1 . . 1 . 1 Exploration Rate (%) 65 | 2 98 82 70 48 29 78 22 92 23 57 80 94 53 57 85 66 1 97 81 66 49 98 98 69 97 94 97 65 77 73 85 28 95 60 57 72 62 67 95 96 27 50 8 Regions Visited 43 Branch Regions 22 Pre-discovered Areas 8 | . . 1 1 1 . . . . . . . . 2 . 2 . . . . . . . . 1 . . . . . . . . . . . . . . . . . . . Known Exits Taken 12 | . . . . . 1 . 1 . . . . 1 1 . . . . . 1 . 1 . . . 1 1 . 1 . . . . 1 . . . . 1 . 1 . . . Unknown Exits Taken 23 | 1 1 1 1 1 . . . . 1 . . . . 1 1 1 . . . . . 1 1 1 . . . . 1 1 1 1 . 1 1 1 1 . 1 . 1 1 . Scrap Searched 24 | . . 1 . 1 . . . . . . . . 1 . 5 3 . . . . . 5 2 . 1 . . . . . . . . 2 . . 3 . . . . . . Spaces Dug 1816 | . . . . . 2 5 . 2 4 100 . 142 . . . 37 . . 126 12 32 1 3 . 51 196 48 57 12 112 1 23 284 51 10 8 99 155 47 . 13 175 8 Terrain Destroyed 11240 | . 24 . . . 2 23 . 92 29 152 . 755 81 140 . 211 1 106 651 102 331 11 85 . 332 878 478 400 741 1082 12 42 826 225 22 77 198 1123 447 1 243 859 458 Melee 554 | . . . . . 2 3 . . . 18 . 92 . . . 1 . . 93 . . . . . . 158 . . . . . . 187 . . . . . . . . . . Projectile 1283 | . . . . . . . . 10 29 38 . 80 10 1 . 13 1 1 99 18 63 11 5 . 16 81 87 63 34 15 12 42 144 16 17 8 14 79 79 . 23 158 16 AOE 9403 | . 24 . . . . 20 . 82 . 96 . 583 71 139 . 197 . 105 459 84 268 . 80 . 316 639 391 337 707 1067 . . 495 209 5 69 184 1044 368 1 220 701 442 Terrain Rammed . | . . . . . . . . . . . . . . . . . . . . . . . . . . . . . . . . . . . . . . . . . . . . Walls Destroyed . | . . . . . . . . . . . . . . . . . . . . . . . . . . . . . . . . . . . . . . . . . . . . Machines Disabled . | . . . . . . . . . . . . . . . . . . . . . . . . . . . . . . . . . . . . . . . . . . . . Actions | -11 -10 -10 -10 -9 -8 -8 -8 -8 -8 -7 -7 -7 -7 -7 -7 -6 -6 -6 -6 -6 -6 -6 -6 -6 -5 -5 -5 -5 -5 -5 -5 -5 -4 -4 -4 -4 -3 -3 -3 -3 -2 -1 -1 --------- Run | Jun Mat Min Exi Min Mat Gar Mat Gar Mat Fac Was Fac Low Low Zio Pro Fac Was Fac Gar Fac Low Low Dat Pro Fac Gar Fac Ext Cet Arc Hub Fac Upp Upp War Pro Res Arm Lab Res Acc Com Total 91508 | 16 954 837 294 146 231 947 335 1459 283 2022 148 10719 384 379 1186 927 29 360 11223 1098 2365 1082 911 76 1566 14198 2428 3026 1632 2857 325 380 12605 544 317 685 577 3720 2482 739 782 4050 184 Wait 25240 | . 136 307 7 . 2 15 67 66 76 58 2 2933 2 16 62 21 1 3 4146 264 552 19 479 . 180 5510 416 768 649 2291 51 116 1828 36 23 2 52 1009 828 385 32 1819 11 Move 56880 | 12 738 482 274 139 202 710 234 1184 163 1817 142 6833 339 336 1090 798 20 321 6111 679 1439 1034 398 76 1286 7692 1646 1913 512 366 202 193 9651 447 265 614 470 2106 1342 301 593 1604 106 Hop 126 | . . . . . . . . . . 4 . 35 . . . . . . 20 . . . . . . 31 . . . . . . 36 . . . . . . . . . . Pick Up 819 | . 21 5 3 1 4 14 5 3 6 20 2 104 3 2 2 12 1 4 110 6 42 3 2 . 6 114 11 29 23 17 5 3 119 10 1 7 3 46 19 4 6 16 5 Fast Attach 469 | . 6 2 . 1 2 4 3 5 2 19 . 45 2 2 7 8 . 3 32 5 11 . 6 . 2 43 11 1 2 1 8 1 90 . 1 14 1 32 12 9 37 37 2 Attach 411 | . 2 2 2 . 4 5 1 2 3 7 . 28 3 . 4 4 1 1 44 6 28 1 2 . 6 53 8 10 15 10 3 3 69 6 1 1 4 29 11 9 6 8 9 Detach 205 | . 1 . 1 . . 1 . 1 . 1 . 19 1 . 4 3 . . 34 1 8 . 1 . 2 35 1 1 3 . 1 1 49 1 . 3 . 14 5 5 3 5 . Swap 978 | . 2 2 1 1 4 20 2 24 2 7 . 113 5 2 7 16 . 6 93 24 39 4 3 . 10 84 28 54 46 62 2 9 67 12 5 4 14 83 14 . 10 93 4 Drop 1043 | . 6 9 6 2 3 23 7 10 7 23 2 110 2 2 9 20 . 7 108 13 42 3 7 . 8 122 22 31 20 16 11 2 143 8 1 23 3 74 30 11 40 50 7 Fire 3976 | 4 42 28 . . 3 24 16 82 23 42 . 369 19 19 . 41 2 15 305 76 196 18 13 . 64 282 187 219 288 94 42 52 271 24 20 17 28 315 215 15 55 411 40 Melee 860 | . . . . 2 7 86 . . . 23 . 130 . . 1 4 . . 132 . . . . . 2 207 1 . . . . . 265 . . . . . . . . . . Ram 1 | . . . . . . . . . 1 . . . . . . . . . . . . . . . . . . . . . . . . . . . . . . . . . . Kick . | . . . . . . . . . . . . . . . . . . . . . . . . . . . . . . . . . . . . . . . . . . . . Crush 1 | . . . . . . . . . . . . . . . . . . . . . . . . . . . . . . . . . . . . . . . . . . 1 . Escape Stasis 291 | . . . . . . 32 . 56 . 1 . . . . . . . . 62 19 8 . . . . 18 14 . 40 . . . 17 . . . . 12 6 . . 6 . Rewire 175 | . . . . . . 13 . 26 . . . . 8 . . . 4 . . 5 . . . . . . 83 . 34 . . . . . . . 2 . . . . . . Trap 33 | . . . . . . . . . . . . . . . . . . . 26 . . . . . . 7 . . . . . . . . . . . . . . . . . Miscellaneous . | . . . . . . . . . . . . . . . . . . . . . . . . . . . . . . . . . . . . . . . . . . . . Route ------- -11/Junkyard -10/Materials (discovered 5 exits: [*Mat x3] / *Min x2) -10/Mines (discovered 3 exits: [*Mat] / *Exi / *Sub) -10/Exiles (discovered 2 exits: [*Min x2]) -9/Mines -8/Materials (discovered 2 exits: *Fac / Gar) -8/Garrison (discovered 3 exits: *Mat x3) -8/Materials -8/Garrison (discovered 4 exits: *Mat x4) -8/Materials -7/Factory (discovered 6 exits: [*Fac x2] / Sto x2 / *Low x2) -7/Waste -7/Factory (discovered 8 exits: [*Fac x4] / *Sto x2 / *Low x2) -7/Lower Caves -7/Lower Caves -7/Zion -6/Proximity Caves -6/Factory -6/Waste -6/Factory (discovered 7 exits: *Fac x4 / *Low x2 / Gar) -6/Garrison (discovered 4 exits: *Fac x3 / *Fac) -6/Factory (discovered 3 exits: *Fac / *Low x2) -6/Lower Caves -6/Lower Caves (discovered 2 exits: *Fac / *Dat) -6/Data Miner -5/Proximity Caves -5/Factory (discovered 7 exits: *Fac x2 / *Upp x2 / *Ext x2 / Gar) -5/Garrison (discovered 4 exits: *Fac x4) -5/Factory (discovered 4 exits: *Fac x3 / *Ext) -5/Extension (discovered 2 exits: *Fac / *Cet) -5/Cetus (discovered 2 exits: *Fac / [*Arc]) -5/Archives (discovered 2 exits: *Fac / *Hub) -5/Hub_04(d) -4/Factory (discovered 6 exits: *Res x4 / *Upp x2) -4/Upper Caves -4/Upper Caves (discovered 2 exits: *Res / *War) -4/Warlord -3/Proximity Caves -3/Research (discovered 5 exits: *Res x2 / *Arm / *Qua x2) -3/Armory (discovered 3 exits: *Res x2 / [*Lab]) -3/Lab -2/Research (discovered 2 exits: *Acc x2) -1/Access -1/Command History --------- Turn | Location | Event 13 | -11/Junkyard | Discovered new exit (range 3) 27 | -11/Junkyard | Entered Materials 165 | -10/Materials | Discovered new exit (range 7) 308 | -10/Materials | Build established: Mutant 372 | -10/Materials | Discovered new exit (range 12) 636 | -10/Materials | Discovered new exit (range 10) 918 | -10/Materials | Discovered new exit (range 16) 1001 | -10/Materials | Repaired Arm. Wheel 1034 | -10/Materials | Repaired Arm. Wheel 1061 | -10/Materials | Repaired Ion Engine 1132 | -10/Materials | Discovered new exit (range 16) 1189 | -10/Materials | Central database locked down 1318 | -10/Materials | Entered Mines 1320 | -10/Mines | Core integrity fell below 50% 1351 | -10/Mines | Met a Derelict bent on vengeance 1362 | -10/Mines | Deemed a non-threat by the Exiles lab entrance 1454 | -10/Mines | Learned location of Zion (-7) 1546 | -10/Mines | A weapon hastily lodged in a ceiling crevice suddenly fell to the ground 1649 | -10/Mines | Identified exit to Subcaves 1752 | -10/Mines | Met a Derelict who couldn't figure out how to use a Trap Extractor 2176 | -10/Mines | Discovered new exit (range 6) 2238 | -10/Mines | Core integrity fell below 20% 2332 | -10/Mines | Met a Derelict testing a Signal Generator 2371 | -10/Mines | Discovered new exit (range 5) 2377 | -10/Mines | Entered Exiles 2377 | -10/Exiles | Accompanied by 1 ally 2401 | -10/Exiles | Discovered new exit (range 15) 2415 | -10/Exiles | Met 8R-AWN 2438 | -10/Exiles | Met EX-HEX 2486 | -10/Exiles | Met EX-BIN 2502 | -10/Exiles | Aligned with FarCom system 2503 | -10/Exiles | Given EX-Vault access code 2538 | -10/Exiles | Opened EX-Vault 2550 | -10/Exiles | Found XL Autogun Array 2585 | -10/Exiles | Warned to stay clear of 0b10 Research branches 2598 | -10/Exiles | Exiles lab attacked by MAIN.C 2747 | -10/Exiles | Discovered new exit (range 10) 2764 | -10/Exiles | Left Exiles lab with XL Autogun Array 2764 | -10/Exiles | Entered Mines 2764 | -9/Mines | Accompanied by 1 ally 2905 | -9/Mines | Found a hidden stash of uninstalled traps 2936 | -9/Mines | Discovered new exit (range 15) 2963 | -9/Mines | Entered Materials 2963 | -8/Materials | Accompanied by 3 allies 2963 | -8/Materials | Evolved 4 slots: Propulsion x2, Utility x2 2968 | -8/Materials | Led the pair of lost Derelicts to an unsafe place 3062 | -8/Materials | Central database locked down 3152 | -8/Materials | Discovered new exit (range 7) 3255 | -8/Materials | Identified exit to Garrison 3257 | -8/Materials | Entered Garrison 3257 | -8/Garrison | Accompanied by 4 allies 3378 | -8/Garrison | Triggered checkpoint 3399 | -8/Garrison | Garrison Relay disabled 3467 | -8/Garrison | Triggered checkpoint 3467 | -8/Garrison | Triggered checkpoint 3476 | -8/Garrison | Triggered checkpoint 3506 | -8/Garrison | Destroyed 8 combat bots 3591 | -8/Garrison | Discovered new exit (range 12) 3642 | -8/Garrison | Triggered checkpoint 3691 | -8/Garrison | Garrison Relay disabled 3804 | -8/Garrison | Triggered checkpoint 3890 | -8/Garrison | Garrison Relay disabled 3960 | -8/Garrison | Discovered new exit (range 12) 3960 | -8/Garrison | Discovered new exit (range 38) 3960 | -8/Garrison | Discovered new exit (range 68) 4090 | -8/Garrison | Triggered checkpoint 4241 | -8/Garrison | Build established: Scavenger-Mutant 4357 | -8/Garrison | Learned Materials security intel 4373 | -8/Garrison | Attempted to access garrison exit controls, blocked by remote lockdown 4500 | -8/Garrison | Entered Materials 4540 | -8/Materials | Repaired Rnf. Ion Engine 4705 | -8/Materials | Garrison activated, responded to threat 4856 | -8/Materials | Garrison activated, responded to threat 4902 | -8/Materials | Identified exit to Garrison 4920 | -8/Materials | Entered Garrison 4956 | -8/Garrison | Triggered checkpoint 5022 | -8/Garrison | Garrison Relay disabled 5067 | -8/Garrison | Triggered checkpoint 5067 | -8/Garrison | Triggered checkpoint 5128 | -8/Garrison | Destroyed 9 combat bots 5190 | -8/Garrison | Discovered new exit (range 10) 5206 | -8/Garrison | Triggered checkpoint 5227 | -8/Garrison | Discovered new exit (range 5) 5316 | -8/Garrison | Triggered checkpoint 5388 | -8/Garrison | Garrison Relay disabled 5454 | -8/Garrison | Triggered checkpoint 5482 | -8/Garrison | Triggered checkpoint 5577 | -8/Garrison | Garrison Relay disabled 5614 | -8/Garrison | Discovered new exit (range 11) 5758 | -8/Garrison | Garrison Relay disabled 5782 | -8/Garrison | Triggered checkpoint 5912 | -8/Garrison | Discovered new exit (range 10) 6117 | -8/Garrison | Spotted B-75 Beast 6139 | -8/Garrison | Allies destroyed B-75 Beast 6570 | -8/Garrison | Triggered checkpoint 6599 | -8/Garrison | Discovered new exit (range 69) 6599 | -8/Garrison | Discovered new exit (range 13) 6599 | -8/Garrison | Discovered new exit (range 45) 6599 | -8/Garrison | Discovered new exit (range 77) 6775 | -8/Garrison | Entered Materials 6775 | -8/Materials | Accompanied by 3 allies 6804 | -8/Materials | Core integrity fell below 50% 6875 | -8/Materials | Central database locked down 7005 | -8/Materials | Discovered new exit (range 3) 7151 | -8/Materials | Entered Factory 7151 | -7/Factory | Accompanied by 1 ally 7151 | -7/Factory | Evolved 2 slots: Propulsion x1, Utility x1 7179 | -7/Factory | Build established: Hacker-Mutant 7826 | -7/Factory | Discovered new exit (range 13) 7832 | -7/Factory | Found Prototype Launcher 7832 | -7/Factory | Identified Rocket Array 7884 | -7/Factory | Adv. System Shield fried by hacking feedback 7884 | -7/Factory | Hacking Suite fried by hacking feedback 7933 | -7/Factory | Crushed by falling debris 7937 | -7/Factory | Discovered new exit (range 8) 7960 | -7/Factory | Identified exit to Storage 7960 | -7/Factory | Identified exit to Lower Caves 8222 | -7/Factory | Central database locked down 8263 | -7/Factory | Fabricated Hvy. Phase Cannon? 8265 | -7/Factory | Discovered new exit (range 4) 8351 | -7/Factory | First assault squad dispatched 8397 | -7/Factory | Build established: Hacker-Sprinter 8494 | -7/Factory | Sucked down chute 8494 | -7/Factory | Entered Waste 8497 | -7/Waste | Spotted C-40 Crusher 8504 | -7/Waste | Found Imp. Powered Armor 8505 | -7/Waste | Spotted C-40 Crusher 8509 | -7/Waste | EMP discharged 8521 | -7/Waste | Spotted C-40 Crusher 8525 | -7/Waste | Spotted C-40 Crusher 8527 | -7/Waste | Spotted C-40 Crusher 8531 | -7/Waste | Spotted C-40 Crusher 8541 | -7/Waste | Discovered new exit (range 10) 8544 | -7/Waste | Entered Factory 8549 | -7/Factory | Discovered exit to Storage (range 4) 8632 | -7/Factory | Fabricated Imp. Weapon Cycler? 8743 | -7/Factory | Repaired Broken Adv. Plasma Cannon 8821 | -7/Factory | Repaired Broken Imp. Powered Armor? 8934 | -7/Factory | Discovered new exit (range 10) 8969 | -7/Factory | Discovered exit to Lower Caves (range 2) 8991 | -7/Factory | Discovered new exit (range 12) 9264 | -7/Factory | Discovered new exit (range 14) 9345 | -7/Factory | Discovered exit to Storage (range 5) 9535 | -7/Factory | Discovered exit to Lower Caves (range 12) 9551 | -7/Factory | Fabricated Lrn. Missile Launcher? 9668 | -7/Factory | Discovered new exit (range 12) 9831 | -7/Factory | Repaired Mass Driver? 9876 | -7/Factory | Fabricated Lrn. Missile Launcher (x1) 9937 | -7/Factory | Repaired System Restoration Module? 9974 | -7/Factory | Fabricated Imp. Heavy Treads (x2) 10124 | -7/Factory | Fabricated Cargo Storage Unit? 10320 | -7/Factory | Fabricated Rocket Array? 10514 | -7/Factory | Repaired Rocket Array? 10766 | -7/Factory | Repaired Broken Mass Driver? 11070 | -7/Factory | Central database locked down 11344 | -7/Factory | Search patrols dispatched 11495 | -7/Factory | Build established: Hauler-Mutant 13344 | -7/Factory | First assault squad dispatched 14338 | -7/Factory | Destroyed 9 combat bots 14537 | -7/Factory | High security lockdown imminent 14617 | -7/Factory | High security lockdown engaged 14677 | -7/Factory | Destroyed 7 combat bots 14782 | -7/Factory | Core integrity fell below 50% 14833 | -7/Factory | Destroyed 17 combat bots 14945 | -7/Factory | Destroyed 15 combat bots 14951 | -7/Factory | Lost 3 parts (1p2u) 15092 | -7/Factory | Destroyed 22 combat bots 15102 | -7/Factory | Sterilization system engaged 15102 | -7/Factory | Non-combat units ordered to evacuate 15131 | -7/Factory | Destroyed 19 combat bots 15137 | -7/Factory | Lost 8 parts (2n4u2w) 15202 | -7/Factory | Combat units ordered to evacuate 15402 | -7/Factory | Ambient heat levels rising (+10) 15552 | -7/Factory | Ambient heat levels rising (+10) 15702 | -7/Factory | Ambient heat levels rising (+10) 15852 | -7/Factory | Ambient heat levels rising (+10) 16002 | -7/Factory | Ambient heat levels rising (+10) 16152 | -7/Factory | Ambient heat levels rising (+10) 16198 | -7/Factory | Entered Lower Caves 16218 | -7/Lower Caves | Core integrity fell below 20% 16238 | -7/Lower Caves | Attracted the attention of an 0b10 outpost 16251 | -7/Lower Caves | Lost 4 parts (1p2n1u) 16257 | -7/Lower Caves | Met a Warlord Commander 16258 | -7/Lower Caves | Learned location of Warlord (-4) 16264 | -7/Lower Caves | Found Encrypted Comm Array 16272 | -7/Lower Caves | Destroyed 8 combat bots 16336 | -7/Lower Caves | Learned Factory emergency access door positions 16357 | -7/Lower Caves | Identified exit to Lower Caves 16832 | -7/Lower Caves | Entered another Lower Caves area 16832 | -7/Lower Caves | Accompanied by 1 ally 17014 | -7/Lower Caves | Spotted B-75 Beast 17034 | -7/Lower Caves | Destroyed B-75 Beast 17344 | -7/Lower Caves | Discovered new exit (range 15) 17389 | -7/Lower Caves | Entered Zion 17420 | -7/Zion | Found Unknown Piercing Weapon 17420 | -7/Zion | Identified CR-A16's Pointy Stick 17448 | -7/Zion | Discovered new exit (range 10) 17700 | -7/Zion | Gained Derelict followers 17862 | -7/Zion | Learned location of Armory (-3) 17966 | -7/Zion | Learned location of Data Miner (-6) 18009 | -7/Zion | Visited the Megawrench Repair Shop 18215 | -7/Zion | Gained Derelict followers 18500 | -7/Zion | Rebuked by Imprinter 18579 | -7/Zion | Megawrench repaired 10 parts 18906 | -7/Zion | Entered Proximity Caves 18906 | -6/Proximity Caves | Accompanied by 10 allies 18967 | -6/Proximity Caves | Attracted the attention of an 0b10 checkpoint 19227 | -6/Proximity Caves | Learned Factory terminal intel 19432 | -6/Proximity Caves | Unaware initiated a cargo recovery operation 19490 | -6/Proximity Caves | P-60 Hacker assimilated allied 47-YNJ(b) 19636 | -6/Proximity Caves | Attracted the attention of an 0b10 outpost 19671 | -6/Proximity Caves | Destroyed 13 combat bots 19725 | -6/Proximity Caves | Spotted B-75 Beast 20160 | -6/Proximity Caves | Discovered new exit (range 5) 20168 | -6/Proximity Caves | System corruption reached 10% 20175 | -6/Proximity Caves | Entered Factory 20175 | -6/Factory | Evolved 2 slots: Utility x1, Weapon x1 20177 | -6/Factory | Loaded intel: 26 terminal locations 20212 | -6/Factory | Sucked down chute 20212 | -6/Factory | Entered Waste 20212 | -6/Waste | The area was eerily silent 20215 | -6/Waste | 1 allies followed down the chute 20218 | -6/Waste | Found Prototype Hackware 20300 | -6/Waste | A Compactor rumbled back to life 20300 | -6/Waste | Spotted C-40 Crusher 20300 | -6/Waste | Destroyed C-40 Crusher 20686 | -6/Waste | Discovered new exit (range 14) 20707 | -6/Waste | Entered Factory 20707 | -6/Factory | Accompanied by 1 ally 20782 | -6/Factory | Identified Exp. Hacking Suite 21011 | -6/Factory | Discovered new exit (range 9) 21513 | -6/Factory | Spotted B-75 Beast 21529 | -6/Factory | Discovered new exit (range 5) 21567 | -6/Factory | Discovered new exit (range 13) 21668 | -6/Factory | Identified exit to Lower Caves 21681 | -6/Factory | Destroyed 7 combat bots 21685 | -6/Factory | Lost 3 parts (1n2u) 21931 | -6/Factory | Revealed the true nature of CR-A16's Pointy Stick 21935 | -6/Factory | Destroyed B-75 Beast 21959 | -6/Factory | Build established: Sprinter 21964 | -6/Factory | Lost 5 parts (4n1w) 22211 | -6/Factory | Fabricated Nova Cannon? 22353 | -6/Factory | Build established: Hacker-Sprinter 22371 | -6/Factory | Discovered new exit (range 13) 22465 | -6/Factory | Fabricated Tri-rail Accelerator? 22581 | -6/Factory | Joined by Warlord Dakka squad 22599 | -6/Factory | Crushed by falling debris 22630 | -6/Factory | Lost 3 parts (2n1u) 22712 | -6/Factory | Joined by Warlord Ranger squad 22765 | -6/Factory | Joined by Warlord Dakka squad 22784 | -6/Factory | Garrison activated, responded to threat 22879 | -6/Factory | Fabricated Imp. Heavy Treads? 22922 | -6/Factory | Joined by Warlord Pyro squad 22928 | -6/Factory | Fabricated Lrn. Missile Launcher? 23039 | -6/Factory | Fabricated Launcher Loader? 23338 | -6/Factory | Joined by Warlord Infantry squad 23412 | -6/Factory | Fabricated Hvy. Reactive Plating? 23446 | -6/Factory | Fabricated Adv. Shield Generator? 23481 | -6/Factory | Joined by Warlord Chimera squad 23492 | -6/Factory | Identified exit to Garrison 23638 | -6/Factory | Identified exit to Garrison 24334 | -6/Factory | Build established: Mutant 25257 | -6/Factory | First assault squad dispatched 25569 | -6/Factory | Build established: Machinist-Mutant 26795 | -6/Factory | Destroyed 11 combat bots 27499 | -6/Factory | Destroyed 14 combat bots 27835 | -6/Factory | High security lockdown imminent 27915 | -6/Factory | High security lockdown engaged 28063 | -6/Factory | Destroyed 10 combat bots 28213 | -6/Factory | Destroyed 20 combat bots 28255 | -6/Factory | Sterilization system engaged 28255 | -6/Factory | Non-combat units ordered to evacuate 28272 | -6/Factory | Destroyed 10 combat bots 28324 | -6/Factory | Destroyed 12 combat bots 28355 | -6/Factory | Combat units ordered to evacuate 28555 | -6/Factory | Ambient heat levels rising (+10) 28705 | -6/Factory | Ambient heat levels rising (+10) 28855 | -6/Factory | Ambient heat levels rising (+10) 28984 | -6/Factory | Entered Garrison 29064 | -6/Garrison | Triggered checkpoint 29065 | -6/Garrison | Build established: Hauler-Mutant 29157 | -6/Garrison | Garrison Relay disabled 29346 | -6/Garrison | Triggered checkpoint 29352 | -6/Garrison | Triggered checkpoint 29571 | -6/Garrison | Discovered new exit (range 10) 29624 | -6/Garrison | Triggered checkpoint 29681 | -6/Garrison | Garrison Relay disabled 29701 | -6/Garrison | Found embedded Infiltrators 29824 | -6/Garrison | Triggered checkpoint 29919 | -6/Garrison | Triggered checkpoint 30051 | -6/Garrison | Discovered new exit (range 5) 30103 | -6/Garrison | Rescued a captive Derelict 30104 | -6/Garrison | Rescued a captive Derelict 30120 | -6/Garrison | Triggered checkpoint 30174 | -6/Garrison | Garrison Relay disabled 30394 | -6/Garrison | Discovered new exit (range 10) 30406 | -6/Garrison | Spotted B-90 Cyclops 30436 | -6/Garrison | Destroyed B-90 Cyclops 30574 | -6/Garrison | Triggered checkpoint 30618 | -6/Garrison | Discovered new exit (range 5) 30656 | -6/Garrison | Build established: Hauler-Bomber 30726 | -6/Garrison | Triggered checkpoint 30767 | -6/Garrison | Garrison Relay disabled 30875 | -6/Garrison | Rewired B-86 Titan 30887 | -6/Garrison | Rewired B-86 Titan 31039 | -6/Garrison | Build established: Hauler-Mutant 31046 | -6/Garrison | Entered Factory 31046 | -6/Factory | Accompanied by 3 allies 31160 | -6/Factory | Garrison activated, responded to threat 31396 | -6/Factory | First assault squad dispatched 31465 | -6/Factory | Allies destroyed Titan 5a 31468 | -6/Factory | Destroyed Titan 5b 31502 | -6/Factory | High security lockdown imminent 31544 | -6/Factory | Destroyed 10 combat bots 31582 | -6/Factory | High security lockdown engaged 31599 | -6/Factory | Lost 3 parts (1n1u1w) 31618 | -6/Factory | Destroyed 7 combat bots 31749 | -6/Factory | Destroyed 20 combat bots 31789 | -6/Factory | Build established: Machinist-Mutant 31848 | -6/Factory | Destroyed 9 combat bots 31901 | -6/Factory | Destroyed 9 combat bots 31964 | -6/Factory | Core integrity fell below 50% 32001 | -6/Factory | Destroyed 11 combat bots 32053 | -6/Factory | Destroyed 12 combat bots 32228 | -6/Factory | Sterilization system engaged 32228 | -6/Factory | Non-combat units ordered to evacuate 32232 | -6/Factory | Lost 3 parts (1n1u1w) 32243 | -6/Factory | Destroyed 34 combat bots 32328 | -6/Factory | Combat units ordered to evacuate 32528 | -6/Factory | Ambient heat levels rising (+10) 32678 | -6/Factory | Ambient heat levels rising (+10) 32764 | -6/Factory | Build established: Mutant 32828 | -6/Factory | Ambient heat levels rising (+10) 32978 | -6/Factory | Ambient heat levels rising (+10) 33078 | -6/Factory | Build established: Hauler-Mutant 33128 | -6/Factory | Ambient heat levels rising (+10) 33278 | -6/Factory | Ambient heat levels rising (+10) 33428 | -6/Factory | Ambient heat levels rising (+10) 33525 | -6/Factory | Discovered new exit (range 13) 33578 | -6/Factory | Ambient heat levels rising (+10) 33660 | -6/Factory | Found Hvy. Reactive Plating 33728 | -6/Factory | Ambient heat levels rising (+10) 33878 | -6/Factory | Ambient heat levels rising (+10) 34028 | -6/Factory | Ambient heat levels rising (+10) 34178 | -6/Factory | Ambient heat levels rising (+10) 34236 | -6/Factory | Entered Lower Caves 34687 | -6/Lower Caves | Learned Factory stockpile data 35005 | -6/Lower Caves | Build established: Hauler-Bomber 35411 | -6/Lower Caves | Discovered new exit (range 14) 36129 | -6/Lower Caves | Encountered a Warlord checkpoint 36792 | -6/Lower Caves | Entered another Lower Caves area 36811 | -6/Lower Caves | Build established: Hauler-Mutant 37059 | -6/Lower Caves | Discovered new exit (range 4) 37744 | -6/Lower Caves | Discovered new exit (range 76) 38138 | -6/Lower Caves | Encountered a Warlord checkpoint 38277 | -6/Lower Caves | Entered Data Miner 38277 | -6/Data Miner | Discovered new exit (range 6) 38323 | -6/Data Miner | Met Data Miner 38369 | -6/Data Miner | Learned location of Section 7 (-3) 38369 | -6/Data Miner | Acquired the access code to Warlord's prototype stash 38407 | -6/Data Miner | Received God Mode back door access code from Data Miner 38460 | -6/Data Miner | Entered Proximity Caves 38540 | -5/Proximity Caves | Acquired the password to a Derelict Tinkerer's latest research 38863 | -5/Proximity Caves | Escorted by Enhanced Grunt 38938 | -5/Proximity Caves | Learned Factory security intel 38973 | -5/Proximity Caves | Caught by Unaware searching for contraband prototypes 39181 | -5/Proximity Caves | Learned Factory interactive machine intel 39392 | -5/Proximity Caves | Caught by Unaware searching for contraband prototypes 39636 | -5/Proximity Caves | Discovered new exit (range 13) 39802 | -5/Proximity Caves | Build established: Hauler-Tank 40426 | -5/Proximity Caves | Spotted B-75 Beast 40459 | -5/Proximity Caves | Destroyed B-75 Beast 40736 | -5/Proximity Caves | Build established: Hauler-Mutant 41177 | -5/Proximity Caves | Learned Research garrison access intel 41177 | -5/Proximity Caves | Identified exit to Factory 41455 | -5/Proximity Caves | Build established: Hacker-Mutant 41913 | -5/Proximity Caves | Entered Factory 41913 | -5/Factory | Evolved 2 slots: Power x1, Utility x1 41914 | -5/Factory | Identified exit to Upper Caves 41917 | -5/Factory | Loaded intel: 53 interactive machine locations 42594 | -5/Factory | Build established: Hacker-Sprinter 42674 | -5/Factory | Lost 3 parts (1p1n1u) 42687 | -5/Factory | Joined by Warlord Muscle squad 43019 | -5/Factory | Discovered new exit (range 16) 43202 | -5/Factory | Identified exit to Extension 43231 | -5/Factory | Incoming investigation squad redirected 43270 | -5/Factory | Discovered new exit (range 7) 43505 | -5/Factory | Discovered new exit (range 10) 43529 | -5/Factory | Build established: Wizard-Sprinter 43637 | -5/Factory | Lost 4 parts (1p1n2u) 43662 | -5/Factory | Found Prototype Processor 43662 | -5/Factory | Identified Exp. Signal Interpreter 43693 | -5/Factory | Incoming investigation squad redirected 43782 | -5/Factory | Fabricated Tri-rail Accelerator? 43879 | -5/Factory | Build established: Hacker-Mutant 43931 | -5/Factory | Joined by Warlord Ghost squad 43977 | -5/Factory | Spotted B-75 Beast 44005 | -5/Factory | Destroyed B-75 Beast 44105 | -5/Factory | Fabricated Lrn. Missile Launcher? 44208 | -5/Factory | Identified exit to Garrison 44283 | -5/Factory | Repaired Lrn. Missile Launcher 44307 | -5/Factory | Fabricated Adv. Heavy Treads? 44408 | -5/Factory | Fabricated Neutron Missile Launcher? 44425 | -5/Factory | Build established: Wizard-Mutant 44844 | -5/Factory | Mak. Hacking Suite fried by hacking feedback 44870 | -5/Factory | Incoming investigation squad redirected 45091 | -5/Factory | Found Imp. Powered Armor 45092 | -5/Factory | Found Imp. Powered Armor 45093 | -5/Factory | Found Imp. Powered Armor 45095 | -5/Factory | Found Imp. Powered Armor 45096 | -5/Factory | Found Imp. Powered Armor 45159 | -5/Factory | Fabricated Neutron Missile Launcher? 45251 | -5/Factory | Build established: Hacker-Sprinter 45486 | -5/Factory | Found Launcher Loader 45513 | -5/Factory | Search patrols dispatched 45758 | -5/Factory | Adv. Hacking Suite fried by hacking feedback 45785 | -5/Factory | Incoming investigation squad redirected 46322 | -5/Factory | Build established: Hauler-Mutant 46713 | -5/Factory | First assault squad dispatched 46729 | -5/Factory | Incoming assault squad redirected 46964 | -5/Factory | Build established: Machinist-Mutant 49133 | -5/Factory | Incoming assault squad redirected 49728 | -5/Factory | Incoming assault squad redirected 50029 | -5/Factory | Incoming assault squad redirected 50932 | -5/Factory | Incoming assault squad redirected 51093 | -5/Factory | High security lockdown imminent 51173 | -5/Factory | High security lockdown engaged 51380 | -5/Factory | Destroyed 19 combat bots 51505 | -5/Factory | Destroyed 12 combat bots 51643 | -5/Factory | Destroyed 25 combat bots 51798 | -5/Factory | Sterilization system engaged 51798 | -5/Factory | Non-combat units ordered to evacuate 51842 | -5/Factory | Destroyed 33 combat bots 51898 | -5/Factory | Combat units ordered to evacuate 52098 | -5/Factory | Ambient heat levels rising (+10) 52224 | -5/Factory | Build established: Hauler-Mutant 52248 | -5/Factory | Ambient heat levels rising (+10) 52374 | -5/Factory | Entered Garrison 52477 | -5/Garrison | Triggered checkpoint 52547 | -5/Garrison | Garrison Relay disabled 52610 | -5/Garrison | Triggered checkpoint 53042 | -5/Garrison | Triggered checkpoint 53042 | -5/Garrison | Triggered checkpoint 53335 | -5/Garrison | Spotted B-75 Beast 53570 | -5/Garrison | Destroyed B-75 Beast 53673 | -5/Garrison | Discovered new exit (range 9) 53721 | -5/Garrison | Triggered checkpoint 53797 | -5/Garrison | Garrison Relay disabled 53884 | -5/Garrison | Triggered checkpoint 54011 | -5/Garrison | Triggered checkpoint 54043 | -5/Garrison | Destroyed 8 combat bots 54047 | -5/Garrison | Discovered new exit (range 9) 54187 | -5/Garrison | Garrison Relay disabled 54314 | -5/Garrison | Triggered checkpoint 54369 | -5/Garrison | Discovered new exit (range 3) 54892 | -5/Garrison | Discovered new exit (range 15) 55000 | -5/Garrison | Garrison Relay disabled 55066 | -5/Garrison | Spotted B-75 Beast 55094 | -5/Garrison | Destroyed B-75 Beast 55293 | -5/Garrison | Triggered checkpoint 55357 | -5/Garrison | Garrison Relay disabled 55611 | -5/Garrison | Triggered checkpoint 55676 | -5/Garrison | Garrison Relay disabled 57115 | -5/Garrison | Entered Factory 57115 | -5/Factory | Accompanied by 6 allies 57415 | -5/Factory | First assault squad dispatched 57433 | -5/Factory | Incoming assault squad redirected 57568 | -5/Factory | High security lockdown imminent 57648 | -5/Factory | High security lockdown engaged 57855 | -5/Factory | Destroyed 13 combat bots 58043 | -5/Factory | Build established: Machinist-Mutant 58100 | -5/Factory | Destroyed 16 combat bots 58150 | -5/Factory | Destroyed 7 combat bots 58229 | -5/Factory | Destroyed 13 combat bots 58294 | -5/Factory | Destroyed 10 combat bots 58349 | -5/Factory | Destroyed 8 combat bots 58466 | -5/Factory | Destroyed 15 combat bots 58539 | -5/Factory | Destroyed 11 combat bots 58569 | -5/Factory | Sterilization system engaged 58569 | -5/Factory | Non-combat units ordered to evacuate 58601 | -5/Factory | Destroyed 10 combat bots 58669 | -5/Factory | Combat units ordered to evacuate 58869 | -5/Factory | Ambient heat levels rising (+10) 58942 | -5/Factory | Build established: Hauler-Mutant 59019 | -5/Factory | Ambient heat levels rising (+10) 59169 | -5/Factory | Ambient heat levels rising (+10) 59319 | -5/Factory | Ambient heat levels rising (+10) 59469 | -5/Factory | Ambient heat levels rising (+10) 59619 | -5/Factory | Ambient heat levels rising (+10) 59769 | -5/Factory | Ambient heat levels rising (+10) 59919 | -5/Factory | Ambient heat levels rising (+10) 59953 | -5/Factory | Discovered new exit (range 6) 60069 | -5/Factory | Ambient heat levels rising (+10) 60085 | -5/Factory | Discovered new exit (range 9) 60219 | -5/Factory | Ambient heat levels rising (+10) 60369 | -5/Factory | Ambient heat levels rising (+10) 60519 | -5/Factory | Ambient heat levels rising (+10) 60657 | -5/Factory | Discovered new exit (range 8) 60669 | -5/Factory | Ambient heat levels rising (+10) 60819 | -5/Factory | Ambient heat levels rising (+10) 60969 | -5/Factory | Ambient heat levels rising (+10) 61119 | -5/Factory | Ambient heat levels rising (+10) 61203 | -5/Factory | Discovered exit to Extension (range 11) 61218 | -5/Factory | Entered Extension 61468 | -5/Extension | Disrupted transfer network 61518 | -5/Extension | First assault squad dispatched 61542 | -5/Extension | Incoming assault squad redirected 61546 | -5/Extension | Incoming assault squad redirected 61636 | -5/Extension | Destroyed 7 combat bots 61725 | -5/Extension | High security lockdown imminent 61774 | -5/Extension | Build established: Mutant 61805 | -5/Extension | High security lockdown engaged 61981 | -5/Extension | Destroyed 17 combat bots 62083 | -5/Extension | Destroyed 19 combat bots 62223 | -5/Extension | Destroyed 24 combat bots 62427 | -5/Extension | Destroyed 32 combat bots 62645 | -5/Extension | Sterilization system engaged 62645 | -5/Extension | Non-combat units ordered to evacuate 62678 | -5/Extension | Destroyed 39 combat bots 62745 | -5/Extension | Combat units ordered to evacuate 62830 | -5/Extension | Rescued a captive Derelict 62835 | -5/Extension | Rescued a captive Derelict 62860 | -5/Extension | Rescued a captive Derelict 62868 | -5/Extension | Rescued a captive Derelict 62917 | -5/Extension | Rescued A7 62923 | -5/Extension | Build established: Hauler-Mutant 62945 | -5/Extension | Ambient heat levels rising (+10) 62971 | -5/Extension | Rescued a captive Derelict 62971 | -5/Extension | Rescued a captive Derelict 63095 | -5/Extension | Ambient heat levels rising (+10) 63135 | -5/Extension | Rescued a captive Derelict 63245 | -5/Extension | Ambient heat levels rising (+10) 63346 | -5/Extension | Discovered new exit (range 10) 63347 | -5/Extension | Discovered new exit (range 6) 63362 | -5/Extension | Entered Cetus 63362 | -5/Cetus | Accompanied by 4 allies (A7) 63367 | -5/Cetus | Acquired a Cetus Manufacturing Module code from A7 63393 | -5/Cetus | Spotted Cetus Guard 63393 | -5/Cetus | Spotted Cetus Guard 63400 | -5/Cetus | Allies destroyed Cetus Guard 63401 | -5/Cetus | Spotted Cetus Guard 63404 | -5/Cetus | Allies destroyed Cetus Guard 63408 | -5/Cetus | Destroyed Cetus Guard 63411 | -5/Cetus | Destroyed Cetus Guard 63495 | -5/Cetus | Started Cetus Manufacturing Module 63520 | -5/Cetus | Manufactured an Enhanced Grunt 63545 | -5/Cetus | Manufactured an Enhanced Grunt 63554 | -5/Cetus | Discovered new exit (range 16) 63557 | -5/Cetus | Destroyed 7 combat bots 63570 | -5/Cetus | Manufactured an Enhanced Grunt 63585 | -5/Cetus | Spotted Cetus Guard 63585 | -5/Cetus | Spotted Cetus Guard 63590 | -5/Cetus | Allies destroyed Cetus Guard 63590 | -5/Cetus | Spotted Cetus Guard 63593 | -5/Cetus | Spotted Cetus Guard 63595 | -5/Cetus | Manufactured an Enhanced Grunt 63596 | -5/Cetus | Allies destroyed Cetus Guard 63599 | -5/Cetus | Destroyed Cetus Guard 63605 | -5/Cetus | Allies destroyed Cetus Guard 63615 | -5/Cetus | Discovered new exit (range 15) 63620 | -5/Cetus | Manufactured an Enhanced Grunt 63623 | -5/Cetus | Met Revision 17 63863 | -5/Cetus | Build established: Hauler-Tank 64346 | -5/Cetus | Build established: Hauler-Mutant 65895 | -5/Cetus | High security lockdown imminent 65975 | -5/Cetus | High security lockdown engaged 66050 | -5/Cetus | Extracted ID and sensor layout for unrecognized location from A7's data core 66144 | -5/Cetus | Destroyed 45 combat bots 66255 | -5/Cetus | System corruption reached 10% 66259 | -5/Cetus | Sterilization system engaged 66259 | -5/Cetus | Non-combat units ordered to evacuate 66311 | -5/Cetus | Destroyed 34 combat bots 66359 | -5/Cetus | Combat units ordered to evacuate 66559 | -5/Cetus | Ambient heat levels rising (+10) 66577 | -5/Cetus | Cetus Manufacturing Module disabled 66709 | -5/Cetus | Ambient heat levels rising (+10) 66745 | -5/Cetus | Entered Archives 67002 | -5/Archives | Discovered new exit (range 14) 67087 | -5/Archives | Discovered new exit (range 16) 67353 | -5/Archives | Entered Hub_04(d) 67573 | -5/Hub_04(d) | Build established: Hacker-Mutant 67652 | -5/Hub_04(d) | Core integrity fell below 50% 67754 | -5/Hub_04(d) | Network Hub disabled 67958 | -5/Hub_04(d) | Garrison activated, responded to threat 67973 | -5/Hub_04(d) | Discovered new exit (range 5) 67983 | -5/Hub_04(d) | Entered Factory 67983 | -4/Factory | Evolved 2 slots: Propulsion x1, Utility x1 68564 | -4/Factory | Identified exit to Upper Caves 68849 | -4/Factory | Repaired Launcher Loader? 68877 | -4/Factory | Found Prototype Launcher 68877 | -4/Factory | Identified Mni. Smartbomb Launcher 69225 | -4/Factory | Discovered new exit (range 13) 69451 | -4/Factory | Discovered new exit (range 4) 69800 | -4/Factory | Build established: Wizard-Sprinter 70085 | -4/Factory | Discovered new exit (range 4) 70140 | -4/Factory | Central database locked down 70187 | -4/Factory | Incoming investigation squad redirected 70235 | -4/Factory | Fabricated Adv. Heavy Siege Treads? 70264 | -4/Factory | Identified exit to Garrison 70317 | -4/Factory | Discovered new exit (range 7) 70339 | -4/Factory | Found Prototype Device 70339 | -4/Factory | Identified Exp. ECM Suite 70469 | -4/Factory | Build established: Hacker-Sprinter 70733 | -4/Factory | Search patrols dispatched 70832 | -4/Factory | Fabricated Neutron Missile Launcher? 70944 | -4/Factory | Repaired Centrium Medium Armor Plating? 70992 | -4/Factory | Incoming investigation squad redirected 71112 | -4/Factory | Fabricated Neutron Missile Launcher? 71233 | -4/Factory | Search patrols dispatched 71443 | -4/Factory | Incoming investigation squad redirected 71483 | -4/Factory | Search patrols dispatched 71732 | -4/Factory | Fabricated Exp. Matter Compressor? 71799 | -4/Factory | Found Hvy. Reactive Plating 72215 | -4/Factory | Fabricated Neutron Missile Launcher? 72554 | -4/Factory | Incoming investigation squad redirected 72628 | -4/Factory | Fabricated Centrium Heavy Armor Plating? 72712 | -4/Factory | Spotted B-86 Titan 72719 | -4/Factory | Destroyed B-86 Titan 73301 | -4/Factory | Found Launcher Loader 73424 | -4/Factory | Repaired Neutron Missile Launcher? 73429 | -4/Factory | Released all parts (10) 73430 | -4/Factory | System corruption reached 10% 73459 | -4/Factory | Lost 5 parts (2p1u2w) 73483 | -4/Factory | First assault squad dispatched 73571 | -4/Factory | Incoming assault squad redirected 73625 | -4/Factory | Destroyed 8 combat bots 73625 | -4/Factory | Core integrity fell below 50% 73753 | -4/Factory | Destroyed 8 combat bots 73758 | -4/Factory | Build established: Mutant 73912 | -4/Factory | Destroyed 13 combat bots 74042 | -4/Factory | High security lockdown imminent 74122 | -4/Factory | High security lockdown engaged 74147 | -4/Factory | Destroyed 12 combat bots 74150 | -4/Factory | Lost 4 parts (1n2u1w) 74283 | -4/Factory | Destroyed 13 combat bots 74295 | -4/Factory | Build established: Scavenger-Mutant 74387 | -4/Factory | Destroyed 17 combat bots 74515 | -4/Factory | Sterilization system engaged 74515 | -4/Factory | Non-combat units ordered to evacuate 74525 | -4/Factory | Destroyed 23 combat bots 74615 | -4/Factory | Combat units ordered to evacuate 74815 | -4/Factory | Ambient heat levels rising (+10) 74965 | -4/Factory | Ambient heat levels rising (+10) 75115 | -4/Factory | Ambient heat levels rising (+10) 75261 | -4/Factory | Build established: Hauler-Mutant 75265 | -4/Factory | Ambient heat levels rising (+10) 75415 | -4/Factory | Ambient heat levels rising (+10) 75565 | -4/Factory | Ambient heat levels rising (+10) 75663 | -4/Factory | Found Launcher Loader 75715 | -4/Factory | Ambient heat levels rising (+10) 75865 | -4/Factory | Ambient heat levels rising (+10) 76015 | -4/Factory | Ambient heat levels rising (+10) 76073 | -4/Factory | Entered Upper Caves 76555 | -4/Upper Caves | Build established: Hauler-Tank 76952 | -4/Upper Caves | Attracted the attention of an 0b10 checkpoint 77030 | -4/Upper Caves | Spotted B-86 Titan 77122 | -4/Upper Caves | Discovered new exit (range 14) 77278 | -4/Upper Caves | Entered another Upper Caves area 77340 | -4/Upper Caves | Discovered new exit (range 7) 77341 | -4/Upper Caves | Encountered a Warlord checkpoint 77754 | -4/Upper Caves | Attracted the attention of an 0b10 checkpoint 77830 | -4/Upper Caves | Learned 8 Research zone layouts 78003 | -4/Upper Caves | Learned Research security intel 78021 | -4/Upper Caves | Discovered new exit (range 5) 78029 | -4/Upper Caves | Entered Warlord 78110 | -4/Warlord | System corruption cleaned by Quarantine Array 78373 | -4/Warlord | Build established: Hauler-Mutant 78398 | -4/Warlord | Learned Factory scanalyzer intel 78398 | -4/Warlord | Learned 4 Research zone layouts 78398 | -4/Warlord | Learned 4 Testing zone layouts 78399 | -4/Warlord | Learned Armory trap positions 78453 | -4/Warlord | Met Warlord 78469 | -4/Warlord | Opened Warlord's prototype stash 78478 | -4/Warlord | Warlord's base attacked by MAIN.C 78481 | -4/Warlord | Found Prototype Reactor 78493 | -4/Warlord | Found Prototype Device 78493 | -4/Warlord | Identified Thermal Barrier 78508 | -4/Warlord | Found Prototype Hackware 78530 | -4/Warlord | Found Prototype Processor 78530 | -4/Warlord | Identified Exp. Targeting Computer 78539 | -4/Warlord | Found Prototype Processor 78539 | -4/Warlord | Identified Spectral Analyzer 78828 | -4/Warlord | Warlord forces counterattacked 79035 | -4/Warlord | Found Prototype Energy Gun 79035 | -4/Warlord | Identified Vortex Shotgun 79153 | -4/Warlord | Warlord base infiltrated, sounded retreat 79324 | -4/Warlord | Found Prototype Ballistic Cannon 79324 | -4/Warlord | Identified Hvy. Autocannon 79369 | -4/Warlord | Found Prototype Launcher 79404 | -4/Warlord | Spotted Striker 79406 | -4/Warlord | Core integrity fell below 20% 79408 | -4/Warlord | Spotted Executioner 79413 | -4/Warlord | Destroyed Striker 79415 | -4/Warlord | Destroyed Executioner 79436 | -4/Warlord | Destroyed 12 combat bots 79436 | -4/Warlord | Discovered new exit (range 14) 79466 | -4/Warlord | Entered Proximity Caves 79469 | -3/Proximity Caves | Spotter reported a threat 79469 | -3/Proximity Caves | Spotter reported a threat 79670 | -3/Proximity Caves | Attracted the attention of an 0b10 outpost 79707 | -3/Proximity Caves | Destroyed 10 combat bots 79772 | -3/Proximity Caves | Spotter reported a threat 79978 | -3/Proximity Caves | Build established: Hauler-Tank 80374 | -3/Proximity Caves | Discovered new exit (range 11) 80805 | -3/Proximity Caves | Entered Research 80805 | -3/Research | Evolved 2 slots: Utility x2 80806 | -3/Research | Identified exit to Armory 80806 | -3/Research | Identified exit to Quarantine 80807 | -3/Research | Identified exit to Research 80809 | -3/Research | Loaded intel: 2 garrison access locations 80869 | -3/Research | Allied Derelicts emerged from ambush trap array 81055 | -3/Research | Search patrols dispatched 81075 | -3/Research | Build established: Hauler-Mutant 81391 | -3/Research | Identified System Mapper 81424 | -3/Research | Fabricated Hvy. Reactive Plating (x1) 81479 | -3/Research | Discovered exit to Quarantine (range 15) 81981 | -3/Research | Garrison activated, responded to threat 82055 | -3/Research | First assault squad dispatched 82085 | -3/Research | Incoming assault squad redirected 82848 | -3/Research | Incoming assault squad redirected 82876 | -3/Research | High security lockdown imminent 82956 | -3/Research | High security lockdown engaged 83148 | -3/Research | Destroyed 8 combat bots 83280 | -3/Research | Destroyed 25 combat bots 83342 | -3/Research | Destroyed Investigator 83384 | -3/Research | Destroyed 15 combat bots 83508 | -3/Research | Destroyed Investigator 83547 | -3/Research | Destroyed 21 combat bots 83600 | -3/Research | Spotted Striker 83600 | -3/Research | Spotted Striker 83602 | -3/Research | Destroyed Striker 83604 | -3/Research | Destroyed Striker 83625 | -3/Research | Destroyed 9 combat bots 83641 | -3/Research | Sterilization system engaged 83641 | -3/Research | Non-combat units ordered to evacuate 83691 | -3/Research | Spotted Executioner 83700 | -3/Research | Spotted Striker 83702 | -3/Research | Destroyed Executioner 83705 | -3/Research | Spotted Striker 83710 | -3/Research | Destroyed Striker 83711 | -3/Research | Destroyed Striker 83732 | -3/Research | Destroyed 8 combat bots 83741 | -3/Research | Combat units ordered to evacuate 83826 | -3/Research | Spotted Striker 83847 | -3/Research | Destroyed Striker 83868 | -3/Research | Destroyed 14 combat bots 83941 | -3/Research | Ambient heat levels rising (+10) 84034 | -3/Research | Crushed by falling debris 84091 | -3/Research | Ambient heat levels rising (+10) 84241 | -3/Research | Ambient heat levels rising (+10) 84267 | -3/Research | Identified Vortex Chain Reactor 84391 | -3/Research | Ambient heat levels rising (+10) 84541 | -3/Research | Ambient heat levels rising (+10) 84691 | -3/Research | Ambient heat levels rising (+10) 84841 | -3/Research | Ambient heat levels rising (+10) 84991 | -3/Research | Ambient heat levels rising (+10) 85141 | -3/Research | Ambient heat levels rising (+10) 85291 | -3/Research | Ambient heat levels rising (+10) 85441 | -3/Research | Ambient heat levels rising (+10) 85591 | -3/Research | Ambient heat levels rising (+10) 85741 | -3/Research | Ambient heat levels rising (+10) 85891 | -3/Research | Ambient heat levels rising (+10) 86041 | -3/Research | Ambient heat levels rising (+10) 86191 | -3/Research | Ambient heat levels rising (+10) 86279 | -3/Research | Discovered exit to Research (range 12) 86341 | -3/Research | Ambient heat levels rising (+10) 86345 | -3/Research | Found Unknown Launcher 86345 | -3/Research | Identified Gamma Bomb Array 86491 | -3/Research | Ambient heat levels rising (+10) 86641 | -3/Research | Ambient heat levels rising (+10) 86791 | -3/Research | Ambient heat levels rising (+10) 86941 | -3/Research | Ambient heat levels rising (+10) 87091 | -3/Research | Ambient heat levels rising (+10) 87241 | -3/Research | Ambient heat levels rising (+10) 87294 | -3/Research | Entered Armory 87295 | -3/Armory | Loaded intel: 27 trap records 87324 | -3/Armory | Found Unknown Device 87324 | -3/Armory | Identified Adv. Force Booster 87588 | -3/Armory | First assault squad dispatched 87603 | -3/Armory | Incoming assault squad redirected 87768 | -3/Armory | High security lockdown imminent 87848 | -3/Armory | High security lockdown engaged 87943 | -3/Armory | Destroyed 9 combat bots 88022 | -3/Armory | Destroyed Striker 88057 | -3/Armory | Destroyed 16 combat bots 88129 | -3/Armory | Destroyed Investigator 88151 | -3/Armory | Destroyed Investigator 88195 | -3/Armory | Destroyed 29 combat bots 88289 | -3/Armory | Destroyed Executioner 88352 | -3/Armory | Destroyed Striker 88360 | -3/Armory | Destroyed Executioner 88411 | -3/Armory | Destroyed 21 combat bots 88482 | -3/Armory | Destroyed Striker 88482 | -3/Armory | Destroyed Striker 88510 | -3/Armory | Destroyed 11 combat bots 88599 | -3/Armory | Destroyed Executioner 88600 | -3/Armory | Destroyed Executioner 88612 | -3/Armory | Sterilization system engaged 88612 | -3/Armory | Non-combat units ordered to evacuate 88647 | -3/Armory | Destroyed 28 combat bots 88712 | -3/Armory | Combat units ordered to evacuate 88721 | -3/Armory | Spotted Investigator 88723 | -3/Armory | Destroyed Investigator 88742 | -3/Armory | Destroyed 14 combat bots 88912 | -3/Armory | Ambient heat levels rising (+10) 89062 | -3/Armory | Ambient heat levels rising (+10) 89212 | -3/Armory | Ambient heat levels rising (+10) 89362 | -3/Armory | Ambient heat levels rising (+10) 89512 | -3/Armory | Ambient heat levels rising (+10) 89662 | -3/Armory | Ambient heat levels rising (+10) 89812 | -3/Armory | Ambient heat levels rising (+10) 89867 | -3/Armory | Discovered exit to Research (range 3) 89962 | -3/Armory | Ambient heat levels rising (+10) 90112 | -3/Armory | Ambient heat levels rising (+10) 90262 | -3/Armory | Ambient heat levels rising (+10) 90331 | -3/Armory | Discovered new exit (range 3) 90412 | -3/Armory | Ambient heat levels rising (+10) 90562 | -3/Armory | Ambient heat levels rising (+10) 90712 | -3/Armory | Ambient heat levels rising (+10) 90862 | -3/Armory | Ambient heat levels rising (+10) 91012 | -3/Armory | Ambient heat levels rising (+10) 91162 | -3/Armory | Ambient heat levels rising (+10) 91312 | -3/Armory | Ambient heat levels rising (+10) 91462 | -3/Armory | Ambient heat levels rising (+10) 91612 | -3/Armory | Ambient heat levels rising (+10) 91762 | -3/Armory | Ambient heat levels rising (+10) 91814 | -3/Armory | Discovered exit to Research (range 7) 91900 | -3/Armory | Entered Lab 91908 | -3/Lab | Discovered exit to Research (range 9) 91935 | -3/Lab | Hidden lab's door opened automatically 91935 | -3/Lab | Sensor layout match revealed 91936 | -3/Lab | Gained access to the hidden lab's interior 92238 | -3/Lab | Found Prototype Energy Cannon 92238 | -3/Lab | Identified Potential Cannon 92243 | -3/Lab | Found Prototype Energy Cannon 92243 | -3/Lab | Identified Warp Cannon 92263 | -3/Lab | Found Prototype Protection 92263 | -3/Lab | Identified Hvy. Regenerative Plating 92708 | -3/Lab | Found Alien Artifact 92708 | -3/Lab | Identified Core Reset Matrix 92708 | -3/Lab | Used Core Reset Matrix 92712 | -3/Lab | Sensed 3 artifacts in vicinity 92728 | -3/Lab | Detected by scanners 92736 | -3/Lab | Disabled Active System Cloaker 92738 | -3/Lab | Confronted by A5 92749 | -3/Lab | Destroyed A5 92752 | -3/Lab | Identified Chain Missile Launcher 92758 | -3/Lab | MAIN.C forces arrive to investigate 92800 | -3/Lab | Found Integrated Mediator 92800 | -3/Lab | Installed Integrated Mediator, increased core attachment efficiency. 92809 | -3/Lab | Found Core Regenerator 92826 | -3/Lab | Found Transdimensional Reconstructor 92859 | -3/Lab | Discovered exit to Research (range 6) 92887 | -3/Lab | Entered Research 92887 | -2/Research | Warlord forces began assault on 0b10 92887 | -2/Research | Evolved 2 slots: Utility x2 92912 | -2/Research | Distinguished unit "Railsplitters" dispatched to help 92912 | -2/Research | Distinguished unit "Lucky Slug" dispatched to help 92997 | -2/Research | Research machine network offline 93073 | -2/Research | Met up with Warlord 93416 | -2/Research | Borebot progress halted 93449 | -2/Research | Spotted Striker 93455 | -2/Research | Spotted Executioner 93458 | -2/Research | Spotted Striker 93459 | -2/Research | Destroyed Striker 93467 | -2/Research | Destroyed Executioner 93522 | -2/Research | Borebot progress halted 93548 | -2/Research | Crushed by falling debris 93570 | -2/Research | Discovered new exit (range 5) 93640 | -2/Research | Borebot progress halted 93672 | -2/Research | Discovered new exit (range 8) 93702 | -2/Research | Found Prototype Device 93702 | -2/Research | Identified Exp. Transmission Jammer 93899 | -2/Research | Spotted Executioner 93900 | -2/Research | Spotted Striker 93905 | -2/Research | Destroyed Executioner 93912 | -2/Research | Destroyed Striker 93931 | -2/Research | Spotted Striker 93934 | -2/Research | Spotted Striker 93937 | -2/Research | Destroyed Striker 93945 | -2/Research | Destroyed Striker 94590 | -2/Research | Entered Access 94590 | -1/Access | Evolved 2 slots: Power x1, Utility x1 95340 | -1/Access | First assault squad dispatched 95484 | -1/Access | Intercept squad dispatched 95498 | -1/Access | Spotted Tracker 95498 | -1/Access | Spotted Tracker 95504 | -1/Access | Destroyed Tracker 95506 | -1/Access | Destroyed Tracker 95531 | -1/Access | Spotted Combat Programmer 95536 | -1/Access | Destroyed Combat Programmer 95556 | -1/Access | Spotted Combat Programmer 95566 | -1/Access | Destroyed Combat Programmer 95607 | -1/Access | Incoming assault squad redirected 95694 | -1/Access | System corruption reached 10% 95858 | -1/Access | Incoming assault squad redirected 96067 | -1/Access | Destroyed 7 combat bots 96120 | -1/Access | Incoming assault squad redirected 96370 | -1/Access | Incoming assault squad redirected 96610 | -1/Access | Incoming assault squad redirected 96725 | -1/Access | Destroyed 12 combat bots 96870 | -1/Access | Incoming assault squad redirected 97251 | -1/Access | High security lockdown imminent 97331 | -1/Access | High security lockdown engaged 97469 | -1/Access | Destroyed 9 combat bots 97505 | -1/Access | Destroyed 7 combat bots 97529 | -1/Access | Spotted Investigator 97530 | -1/Access | Destroyed Investigator 97554 | -1/Access | Destroyed 9 combat bots 97679 | -1/Access | Spotted Executioner 97679 | -1/Access | Spotted Striker 97684 | -1/Access | Destroyed Executioner 97692 | -1/Access | Destroyed Striker 97717 | -1/Access | Destroyed Executioner 97718 | -1/Access | Destroyed Executioner 97752 | -1/Access | Sterilization system engaged 97756 | -1/Access | Destroyed 19 combat bots 97888 | -1/Access | Destroyed 7 combat bots 98052 | -1/Access | Ambient heat levels rising (+10) 98116 | -1/Access | Energy Cycler disabled 98202 | -1/Access | Ambient heat levels rising (+10) 98352 | -1/Access | Ambient heat levels rising (+10) 98502 | -1/Access | Ambient heat levels rising (+10) 98652 | -1/Access | Ambient heat levels rising (+10) 98802 | -1/Access | Ambient heat levels rising (+10) 98952 | -1/Access | Ambient heat levels rising (+10) 99102 | -1/Access | Ambient heat levels rising (+10) 99252 | -1/Access | Ambient heat levels rising (+10) 99402 | -1/Access | Ambient heat levels rising (+10) 99552 | -1/Access | Ambient heat levels rising (+10) 99702 | -1/Access | Ambient heat levels rising (+10) 99852 | -1/Access | Ambient heat levels rising (+10) 100002 | -1/Access | Ambient heat levels rising (+10) 100152 | -1/Access | Ambient heat levels rising (+10) 100302 | -1/Access | Ambient heat levels rising (+10) 100307 | -1/Access | Discovered new exit (range 3) 100452 | -1/Access | Ambient heat levels rising (+10) 100589 | -1/Access | Found Unknown Launcher 100589 | -1/Access | Identified Gamma Bomb Array 100602 | -1/Access | Ambient heat levels rising (+10) 100752 | -1/Access | Ambient heat levels rising (+10) 100902 | -1/Access | Ambient heat levels rising (+10) 101052 | -1/Access | Ambient heat levels rising (+10) 101198 | -1/Access | Entered Command 101260 | -1/Command | Spotted B-99 Colossus 101272 | -1/Command | Destroyed B-99 Colossus 101291 | -1/Command | Crushed by falling debris 101448 | -1/Command | First assault squad dispatched 101472 | -1/Command | Incoming assault squad redirected 101501 | -1/Command | Destroyed 9 combat bots 101530 | -1/Command | High security lockdown imminent 101551 | -1/Command | Core integrity fell below 50% 101552 | -1/Command | Emitted hypermatrix ping 101553 | -1/Command | Core integrity fell below 20% 101553 | -1/Command | System corruption reached 30% 101555 | -1/Command | Destroyed by S-43 Plague with Heavy Machine Gun Last Messages --------------- 01553_ Imp. Hacking Suite destroyed. 01553_ G-73 Enforcer destroyed. 01553_ P-80 Master resets P-80 Master, system corruption cleaned. 01553_ Slug penetrates Earth. 01553_ Penetrated by Slug. 01554_ The unstable cave ceiling collapses. 01554_ P-80 Master resets P-80 Master, system corruption cleaned. 01554_ P-80 Master resets L-61 Swordsman, system corruption cleaned. 01554_ Penetrated by Slug. 01554_ Slug penetrates P-80 Master. 01555_ The unstable cave ceiling collapses. 01555_ P-80 Master resets S-43 Plague, system corruption cleaned. 01555_ Slug penetrates Earth. 01556_ The unstable cave ceiling collapses. 01556_ Matter Compressor crushed. 01556_ The unstable cave ceiling collapses. Map ----- +----------------------------------------------------+ | ?????????????????????????????????????????????????? | | ?????????????????????????????????????????????????? | | ?????????????????????????????????????????????????? | | ?????????????????????????????????????????????????? | | ?????????????????????????????????????????????????? | | ?????????????????????????????????????????????????? | | ?????????????????????????????????????????????????? | | ?????????????????????????????????????????????????? | | ??????????????????????????????? ????????????????? | | ?????????????????s????????????? ????????????????? | | ????????????????h??#??????????? #???????????????? | | ????????????????? =#??????## ? #???????????????? | | ?????????????? [ * ?????? # #???????????????? | | ????????????% % ##???? # % ??????????????? | | ?????????? %% h ##### # ????????????? | | ???????? #![% [ # ## # ????????????? | | ???????? [ [ # # # #????????????? | | ??????? # ## # #### # ?????????????? | | ??????? # ##hl ### # ??????????? | | ?????? h ## ## ???????????? | | ?????? b # # ?????????????? | | ?????? = l l # #??????????????? | | ????? "%[ gbb p # ## ########????????# | | ?????"%%%C gh p b[ ] ## # #????????# | | ???? "%%lgg b %pp=!]! # # # ####??????? | | ???? "[hxll p %l%%l ! @ ### ####????# | | ???? "%CCpg=pg ppp!s*] ## # ###### | | ?????# "p= hgpg p*]!!! ## = | | ?????#=%= g [g g !# # | | ?????# ! % ! !### ##### | | ?????# %pp %= ! ##???? | | ?????? ! # " ##???? | | ?????? #=g ggg#! # """" ###### | | ?????? p% g=! ##### "" # | | ??????? # #% ####???# # | | ??????? # != # % ##?????# ! " | | ?????????# [%= %! ##??????# ! ! # | | ?????????# [ ##??????# = # | | ?????????? # % ###???????# ! # | | ???????????? # #?????????## ! ! + | | ??????????????? ??????????#" !! # | | ?????????????????##??????????## ! # | | ?????????????????????????????# # | | | ?????????????????????????????# # | | ?????????????????????????????# + | | ?????????????????????????????# ##+############# | | ?????????????????????????????###### ??????????? | | ??????????????????????????????????# ????????? | | ??????????????????????????????????# ??????? | | ??????????????????????????????????# ]=????? | +----------------------------------------------------+ Best States ------------- Heat Dissipation 258 Coolant Potential 100 Energy Generation 75 Energy Capacity 1150 Matter Stores 800 Matter Capacity 850 Sight Range 24 Terrain Scan Range 20 Terrain Scan Density 110 ECM Strength 3 Jamming Range 22 Cloak Strength 3 Additional Mass Support 12 Corruption Containment 12 Corruption Block 20 Armor Coverage 2400 Resistance: KI 40 Resistance: TH 15 Propulsion Shielding 66 Weapon Shielding 66 Weapon Cycling 25 Phase Shifting 15 Evasion (%) 66 Recoil Reduction 6 Matter Filtering 75 Force Boost 20 Offensive Hacking 40 Defensive Hacking 24 Authchip Count 2 Item Schematics ----------------- None Robot Schematics ------------------ None Fabricated ------------ Hvy. Phase Cannon | x2 | -7/Factory | Preloaded Imp. Weapon Cycler | x2 | -7/Factory | Preloaded Lrn. Missile Launcher | x1 | -7/Factory Lrn. Missile Launcher | x1 | -7/Factory Imp. Heavy Treads | x2 | -7/Factory | Authchip Cargo Storage Unit | x1 | -7/Factory Rocket Array | x1 | -7/Factory | Authchip Nova Cannon | x1 | -6/Factory | Preloaded Tri-rail Accelerator | x1 | -6/Factory | Authchip Imp. Heavy Treads | x2 | -6/Factory | Authchip Lrn. Missile Launcher | x1 | -6/Factory | Authchip Launcher Loader | x2 | -6/Factory | Authchip Hvy. Reactive Plating | x1 | -6/Factory Adv. Shield Generator | x2 | -6/Factory Tri-rail Accelerator | x1 | -5/Factory | Authchip Lrn. Missile Launcher | x1 | -5/Factory | Authchip Adv. Heavy Treads | x2 | -5/Factory | Authchip Neutron Missile Launcher | x1 | -5/Factory Neutron Missile Launcher | x1 | -5/Factory Adv. Heavy Siege Treads | x2 | -4/Factory Neutron Missile Launcher | x1 | -4/Factory | Authchip Neutron Missile Launcher | x1 | -4/Factory | Authchip Exp. Matter Compressor | x1 | -4/Factory | Authchip Neutron Missile Launcher | x1 | -4/Factory Centrium Heavy Armor Plating | x1 | -4/Factory Hvy. Reactive Plating | x1 | -3/Research Alien Tech Used ----------------- Core Reset Matrix Integrated Mediator Achievements -------------- None Challenges ------------ None Game ------ Seed ThrusterCompositeAirjet Manual? 0 Play Time 28:02:21 Cumulative 1059.7 hours Start 2023.08.01 @ 21:16:31 End 2023.08.29 @ 22:04:10 Sessions 37 Manual Loads 0 Difficulty Rogue Special Mode None Game No. 217 Rogue 185 Adventurer 31 Explorer 1 Win Type - Total 46 Types 32/0/6/7/0/0/1/0/0 Lore% 84 Gallery% 89 Achievement% 79 Wizard Run 0 Options --------- ASCII 0 Keyboard 0 Movement Arrows Keybinds 0 Fullscreen 1 Font 20/Terminus Map View 66x50 Tactical HUD 1 Map Filters NONE Filters NONE Steam 1 RUN: 2787b78c-9790-409f-9ceb-86f5e8982e72